{"text_format":"1","workbook":"xlsx","n_sheets":5,"sheets":["התחלה וסיום","סך שעות","עבודות מרובות","יעדים","תשלומים"],"not_rendered":{"charts":0,"images":0,"macros":1,"external_links":0,"defined_names":0,"comments":0,"pivot_tables":0},"unopened":[],"bounds":{"document_bytes":16777216,"sheet_cells":100000,"rows_first":2000,"rows_last":500,"rows_between":2000,"halvings":0,"cell_chars":16384,"cell_head_chars":4096},"cells_cut":0,"cells_raw":0,"read":"whole","date_system":"1900"}

{"sheet":"התחלה וסיום","index":0,"n_rows":86,"n_cols":10,"rows_kept":86,"cut":false,"hidden":false,"merged":[[84,0,84,2],[85,0,85,2],[1,9,1,10],[2,9,3,10],[2,8,3,8],[81,0,81,2],[82,0,82,2],[0,0,1,2],[2,0,2,2],[2,6,3,7],[1,6,1,7]]}
["חישוב שעות עבודה לפי התחלה וסיום"]
[null,null,null,null,null,null,"סה\"כ שעות",null,"שכר לשעה","לתשלום"]
["לחיצה כפולה על תא תציג את השעה הנוכחית",null,null,null,null,null,{"$f":"SUM(טבלה1[סה\"כ])","v":0},null,30,{"$f":"I3*G3*24","v":0}]
["התחלה","סיום","סה\"כ","הערות","תאריך"]
[null,null,{"$f":"IF(טבלה1[[#This Row],[סיום]]=\"\",\"\",טבלה1[[#This Row],[סיום]]-טבלה1[[#This Row],[התחלה]]+(טבלה1[[#This Row],[סיום]]<טבלה1[[#This Row],[התחלה]]))","v":""}]
[null,null,{"$f":"IF(טבלה1[[#This Row],[סיום]]=\"\",\"\",טבלה1[[#This Row],[סיום]]-טבלה1[[#This Row],[התחלה]]+(טבלה1[[#This Row],[סיום]]<טבלה1[[#This Row],[התחלה]]))","v":""}]
[null,null,{"$f":"IF(טבלה1[[#This Row],[סיום]]=\"\",\"\",טבלה1[[#This Row],[סיום]]-טבלה1[[#This Row],[התחלה]]+(טבלה1[[#This Row],[סיום]]<טבלה1[[#This Row],[התחלה]]))","v":""}]
[null,null,{"$f":"IF(טבלה1[[#This Row],[סיום]]=\"\",\"\",טבלה1[[#This Row],[סיום]]-טבלה1[[#This Row],[התחלה]]+(טבלה1[[#This Row],[סיום]]<טבלה1[[#This Row],[התחלה]]))","v":""}]
[null,null,{"$f":"IF(טבלה1[[#This Row],[סיום]]=\"\",\"\",טבלה1[[#This Row],[סיום]]-טבלה1[[#This Row],[התחלה]]+(טבלה1[[#This Row],[סיום]]<טבלה1[[#This Row],[התחלה]]))","v":""}]
[null,null,{"$f":"IF(טבלה1[[#This Row],[סיום]]=\"\",\"\",טבלה1[[#This Row],[סיום]]-טבלה1[[#This Row],[התחלה]]+(טבלה1[[#This Row],[סיום]]<טבלה1[[#This Row],[התחלה]]))","v":""}]
[null,null,{"$f":"IF(טבלה1[[#This Row],[סיום]]=\"\",\"\",טבלה1[[#This Row],[סיום]]-טבלה1[[#This Row],[התחלה]]+(טבלה1[[#This Row],[סיום]]<טבלה1[[#This Row],[התחלה]]))","v":""}]
[null,null,{"$f":"IF(טבלה1[[#This Row],[סיום]]=\"\",\"\",טבלה1[[#This Row],[סיום]]-טבלה1[[#This Row],[התחלה]]+(טבלה1[[#This Row],[סיום]]<טבלה1[[#This Row],[התחלה]]))","v":""}]
[null,null,{"$f":"IF(טבלה1[[#This Row],[סיום]]=\"\",\"\",טבלה1[[#This Row],[סיום]]-טבלה1[[#This Row],[התחלה]]+(טבלה1[[#This Row],[סיום]]<טבלה1[[#This Row],[התחלה]]))","v":""}]
[null,null,{"$f":"IF(טבלה1[[#This Row],[סיום]]=\"\",\"\",טבלה1[[#This Row],[סיום]]-טבלה1[[#This Row],[התחלה]]+(טבלה1[[#This Row],[סיום]]<טבלה1[[#This Row],[התחלה]]))","v":""}]
[null,null,{"$f":"IF(טבלה1[[#This Row],[סיום]]=\"\",\"\",טבלה1[[#This Row],[סיום]]-טבלה1[[#This Row],[התחלה]]+(טבלה1[[#This Row],[סיום]]<טבלה1[[#This Row],[התחלה]]))","v":""}]
[null,null,{"$f":"IF(טבלה1[[#This Row],[סיום]]=\"\",\"\",טבלה1[[#This Row],[סיום]]-טבלה1[[#This Row],[התחלה]]+(טבלה1[[#This Row],[סיום]]<טבלה1[[#This Row],[התחלה]]))","v":""}]
[null,null,{"$f":"IF(טבלה1[[#This Row],[סיום]]=\"\",\"\",טבלה1[[#This Row],[סיום]]-טבלה1[[#This Row],[התחלה]]+(טבלה1[[#This Row],[סיום]]<טבלה1[[#This Row],[התחלה]]))","v":""}]
[null,null,{"$f":"IF(טבלה1[[#This Row],[סיום]]=\"\",\"\",טבלה1[[#This Row],[סיום]]-טבלה1[[#This Row],[התחלה]]+(טבלה1[[#This Row],[סיום]]<טבלה1[[#This Row],[התחלה]]))","v":""}]
[null,null,{"$f":"IF(טבלה1[[#This Row],[סיום]]=\"\",\"\",טבלה1[[#This Row],[סיום]]-טבלה1[[#This Row],[התחלה]]+(טבלה1[[#This Row],[סיום]]<טבלה1[[#This Row],[התחלה]]))","v":""}]
[null,null,{"$f":"IF(טבלה1[[#This Row],[סיום]]=\"\",\"\",טבלה1[[#This Row],[סיום]]-טבלה1[[#This Row],[התחלה]]+(טבלה1[[#This Row],[סיום]]<טבלה1[[#This Row],[התחלה]]))","v":""}]
[null,null,{"$f":"IF(טבלה1[[#This Row],[סיום]]=\"\",\"\",טבלה1[[#This Row],[סיום]]-טבלה1[[#This Row],[התחלה]]+(טבלה1[[#This Row],[סיום]]<טבלה1[[#This Row],[התחלה]]))","v":""}]
[null,null,{"$f":"IF(טבלה1[[#This Row],[סיום]]=\"\",\"\",טבלה1[[#This Row],[סיום]]-טבלה1[[#This Row],[התחלה]]+(טבלה1[[#This Row],[סיום]]<טבלה1[[#This Row],[התחלה]]))","v":""}]
[null,null,{"$f":"IF(טבלה1[[#This Row],[סיום]]=\"\",\"\",טבלה1[[#This Row],[סיום]]-טבלה1[[#This Row],[התחלה]]+(טבלה1[[#This Row],[סיום]]<טבלה1[[#This Row],[התחלה]]))","v":""}]
[null,null,{"$f":"IF(טבלה1[[#This Row],[סיום]]=\"\",\"\",טבלה1[[#This Row],[סיום]]-טבלה1[[#This Row],[התחלה]]+(טבלה1[[#This Row],[סיום]]<טבלה1[[#This Row],[התחלה]]))","v":""}]
[null,null,{"$f":"IF(טבלה1[[#This Row],[סיום]]=\"\",\"\",טבלה1[[#This Row],[סיום]]-טבלה1[[#This Row],[התחלה]]+(טבלה1[[#This Row],[סיום]]<טבלה1[[#This Row],[התחלה]]))","v":""}]
[null,null,{"$f":"IF(טבלה1[[#This Row],[סיום]]=\"\",\"\",טבלה1[[#This Row],[סיום]]-טבלה1[[#This Row],[התחלה]]+(טבלה1[[#This Row],[סיום]]<טבלה1[[#This Row],[התחלה]]))","v":""}]
[null,null,{"$f":"IF(טבלה1[[#This Row],[סיום]]=\"\",\"\",טבלה1[[#This Row],[סיום]]-טבלה1[[#This Row],[התחלה]]+(טבלה1[[#This Row],[סיום]]<טבלה1[[#This Row],[התחלה]]))","v":""}]
[null,null,{"$f":"IF(טבלה1[[#This Row],[סיום]]=\"\",\"\",טבלה1[[#This Row],[סיום]]-טבלה1[[#This Row],[התחלה]]+(טבלה1[[#This Row],[סיום]]<טבלה1[[#This Row],[התחלה]]))","v":""}]
[null,null,{"$f":"IF(טבלה1[[#This Row],[סיום]]=\"\",\"\",טבלה1[[#This Row],[סיום]]-טבלה1[[#This Row],[התחלה]]+(טבלה1[[#This Row],[סיום]]<טבלה1[[#This Row],[התחלה]]))","v":""}]
[null,null,{"$f":"IF(טבלה1[[#This Row],[סיום]]=\"\",\"\",טבלה1[[#This Row],[סיום]]-טבלה1[[#This Row],[התחלה]]+(טבלה1[[#This Row],[סיום]]<טבלה1[[#This Row],[התחלה]]))","v":""}]
[null,null,{"$f":"IF(טבלה1[[#This Row],[סיום]]=\"\",\"\",טבלה1[[#This Row],[סיום]]-טבלה1[[#This Row],[התחלה]]+(טבלה1[[#This Row],[סיום]]<טבלה1[[#This Row],[התחלה]]))","v":""}]
[null,null,{"$f":"IF(טבלה1[[#This Row],[סיום]]=\"\",\"\",טבלה1[[#This Row],[סיום]]-טבלה1[[#This Row],[התחלה]]+(טבלה1[[#This Row],[סיום]]<טבלה1[[#This Row],[התחלה]]))","v":""}]
[null,null,{"$f":"IF(טבלה1[[#This Row],[סיום]]=\"\",\"\",טבלה1[[#This Row],[סיום]]-טבלה1[[#This Row],[התחלה]]+(טבלה1[[#This Row],[סיום]]<טבלה1[[#This Row],[התחלה]]))","v":""}]
[null,null,{"$f":"IF(טבלה1[[#This Row],[סיום]]=\"\",\"\",טבלה1[[#This Row],[סיום]]-טבלה1[[#This Row],[התחלה]]+(טבלה1[[#This Row],[סיום]]<טבלה1[[#This Row],[התחלה]]))","v":""}]
[null,null,{"$f":"IF(טבלה1[[#This Row],[סיום]]=\"\",\"\",טבלה1[[#This Row],[סיום]]-טבלה1[[#This Row],[התחלה]]+(טבלה1[[#This Row],[סיום]]<טבלה1[[#This Row],[התחלה]]))","v":""}]
[null,null,{"$f":"IF(טבלה1[[#This Row],[סיום]]=\"\",\"\",טבלה1[[#This Row],[סיום]]-טבלה1[[#This Row],[התחלה]]+(טבלה1[[#This Row],[סיום]]<טבלה1[[#This Row],[התחלה]]))","v":""}]
[null,null,{"$f":"IF(טבלה1[[#This Row],[סיום]]=\"\",\"\",טבלה1[[#This Row],[סיום]]-טבלה1[[#This Row],[התחלה]]+(טבלה1[[#This Row],[סיום]]<טבלה1[[#This Row],[התחלה]]))","v":""}]
[null,null,{"$f":"IF(טבלה1[[#This Row],[סיום]]=\"\",\"\",טבלה1[[#This Row],[סיום]]-טבלה1[[#This Row],[התחלה]]+(טבלה1[[#This Row],[סיום]]<טבלה1[[#This Row],[התחלה]]))","v":""}]
[null,null,{"$f":"IF(טבלה1[[#This Row],[סיום]]=\"\",\"\",טבלה1[[#This Row],[סיום]]-טבלה1[[#This Row],[התחלה]]+(טבלה1[[#This Row],[סיום]]<טבלה1[[#This Row],[התחלה]]))","v":""}]
[null,null,{"$f":"IF(טבלה1[[#This Row],[סיום]]=\"\",\"\",טבלה1[[#This Row],[סיום]]-טבלה1[[#This Row],[התחלה]]+(טבלה1[[#This Row],[סיום]]<טבלה1[[#This Row],[התחלה]]))","v":""}]
[null,null,{"$f":"IF(טבלה1[[#This Row],[סיום]]=\"\",\"\",טבלה1[[#This Row],[סיום]]-טבלה1[[#This Row],[התחלה]]+(טבלה1[[#This Row],[סיום]]<טבלה1[[#This Row],[התחלה]]))","v":""}]
[null,null,{"$f":"IF(טבלה1[[#This Row],[סיום]]=\"\",\"\",טבלה1[[#This Row],[סיום]]-טבלה1[[#This Row],[התחלה]]+(טבלה1[[#This Row],[סיום]]<טבלה1[[#This Row],[התחלה]]))","v":""}]
[null,null,{"$f":"IF(טבלה1[[#This Row],[סיום]]=\"\",\"\",טבלה1[[#This Row],[סיום]]-טבלה1[[#This Row],[התחלה]]+(טבלה1[[#This Row],[סיום]]<טבלה1[[#This Row],[התחלה]]))","v":""}]
[null,null,{"$f":"IF(טבלה1[[#This Row],[סיום]]=\"\",\"\",טבלה1[[#This Row],[סיום]]-טבלה1[[#This Row],[התחלה]]+(טבלה1[[#This Row],[סיום]]<טבלה1[[#This Row],[התחלה]]))","v":""}]
[null,null,{"$f":"IF(טבלה1[[#This Row],[סיום]]=\"\",\"\",טבלה1[[#This Row],[סיום]]-טבלה1[[#This Row],[התחלה]]+(טבלה1[[#This Row],[סיום]]<טבלה1[[#This Row],[התחלה]]))","v":""}]
[null,null,{"$f":"IF(טבלה1[[#This Row],[סיום]]=\"\",\"\",טבלה1[[#This Row],[סיום]]-טבלה1[[#This Row],[התחלה]]+(טבלה1[[#This Row],[סיום]]<טבלה1[[#This Row],[התחלה]]))","v":""}]
[null,null,{"$f":"IF(טבלה1[[#This Row],[סיום]]=\"\",\"\",טבלה1[[#This Row],[סיום]]-טבלה1[[#This Row],[התחלה]]+(טבלה1[[#This Row],[סיום]]<טבלה1[[#This Row],[התחלה]]))","v":""}]
[null,null,{"$f":"IF(טבלה1[[#This Row],[סיום]]=\"\",\"\",טבלה1[[#This Row],[סיום]]-טבלה1[[#This Row],[התחלה]]+(טבלה1[[#This Row],[סיום]]<טבלה1[[#This Row],[התחלה]]))","v":""}]
[null,null,{"$f":"IF(טבלה1[[#This Row],[סיום]]=\"\",\"\",טבלה1[[#This Row],[סיום]]-טבלה1[[#This Row],[התחלה]]+(טבלה1[[#This Row],[סיום]]<טבלה1[[#This Row],[התחלה]]))","v":""}]
[null,null,{"$f":"IF(טבלה1[[#This Row],[סיום]]=\"\",\"\",טבלה1[[#This Row],[סיום]]-טבלה1[[#This Row],[התחלה]]+(טבלה1[[#This Row],[סיום]]<טבלה1[[#This Row],[התחלה]]))","v":""}]
[null,null,{"$f":"IF(טבלה1[[#This Row],[סיום]]=\"\",\"\",טבלה1[[#This Row],[סיום]]-טבלה1[[#This Row],[התחלה]]+(טבלה1[[#This Row],[סיום]]<טבלה1[[#This Row],[התחלה]]))","v":""}]
[null,null,{"$f":"IF(טבלה1[[#This Row],[סיום]]=\"\",\"\",טבלה1[[#This Row],[סיום]]-טבלה1[[#This Row],[התחלה]]+(טבלה1[[#This Row],[סיום]]<טבלה1[[#This Row],[התחלה]]))","v":""}]
[null,null,{"$f":"IF(טבלה1[[#This Row],[סיום]]=\"\",\"\",טבלה1[[#This Row],[סיום]]-טבלה1[[#This Row],[התחלה]]+(טבלה1[[#This Row],[סיום]]<טבלה1[[#This Row],[התחלה]]))","v":""}]
[null,null,{"$f":"IF(טבלה1[[#This Row],[סיום]]=\"\",\"\",טבלה1[[#This Row],[סיום]]-טבלה1[[#This Row],[התחלה]]+(טבלה1[[#This Row],[סיום]]<טבלה1[[#This Row],[התחלה]]))","v":""}]
[null,null,{"$f":"IF(טבלה1[[#This Row],[סיום]]=\"\",\"\",טבלה1[[#This Row],[סיום]]-טבלה1[[#This Row],[התחלה]]+(טבלה1[[#This Row],[סיום]]<טבלה1[[#This Row],[התחלה]]))","v":""}]
[null,null,{"$f":"IF(טבלה1[[#This Row],[סיום]]=\"\",\"\",טבלה1[[#This Row],[סיום]]-טבלה1[[#This Row],[התחלה]]+(טבלה1[[#This Row],[סיום]]<טבלה1[[#This Row],[התחלה]]))","v":""}]
[null,null,{"$f":"IF(טבלה1[[#This Row],[סיום]]=\"\",\"\",טבלה1[[#This Row],[סיום]]-טבלה1[[#This Row],[התחלה]]+(טבלה1[[#This Row],[סיום]]<טבלה1[[#This Row],[התחלה]]))","v":""}]
[null,null,{"$f":"IF(טבלה1[[#This Row],[סיום]]=\"\",\"\",טבלה1[[#This Row],[סיום]]-טבלה1[[#This Row],[התחלה]]+(טבלה1[[#This Row],[סיום]]<טבלה1[[#This Row],[התחלה]]))","v":""}]
[null,null,{"$f":"IF(טבלה1[[#This Row],[סיום]]=\"\",\"\",טבלה1[[#This Row],[סיום]]-טבלה1[[#This Row],[התחלה]]+(טבלה1[[#This Row],[סיום]]<טבלה1[[#This Row],[התחלה]]))","v":""}]
[null,null,{"$f":"IF(טבלה1[[#This Row],[סיום]]=\"\",\"\",טבלה1[[#This Row],[סיום]]-טבלה1[[#This Row],[התחלה]]+(טבלה1[[#This Row],[סיום]]<טבלה1[[#This Row],[התחלה]]))","v":""}]
[null,null,{"$f":"IF(טבלה1[[#This Row],[סיום]]=\"\",\"\",טבלה1[[#This Row],[סיום]]-טבלה1[[#This Row],[התחלה]]+(טבלה1[[#This Row],[סיום]]<טבלה1[[#This Row],[התחלה]]))","v":""}]
[null,null,{"$f":"IF(טבלה1[[#This Row],[סיום]]=\"\",\"\",טבלה1[[#This Row],[סיום]]-טבלה1[[#This Row],[התחלה]]+(טבלה1[[#This Row],[סיום]]<טבלה1[[#This Row],[התחלה]]))","v":""}]
[null,null,{"$f":"IF(טבלה1[[#This Row],[סיום]]=\"\",\"\",טבלה1[[#This Row],[סיום]]-טבלה1[[#This Row],[התחלה]]+(טבלה1[[#This Row],[סיום]]<טבלה1[[#This Row],[התחלה]]))","v":""}]
[null,null,{"$f":"IF(טבלה1[[#This Row],[סיום]]=\"\",\"\",טבלה1[[#This Row],[סיום]]-טבלה1[[#This Row],[התחלה]]+(טבלה1[[#This Row],[סיום]]<טבלה1[[#This Row],[התחלה]]))","v":""}]
[null,null,{"$f":"IF(טבלה1[[#This Row],[סיום]]=\"\",\"\",טבלה1[[#This Row],[סיום]]-טבלה1[[#This Row],[התחלה]]+(טבלה1[[#This Row],[סיום]]<טבלה1[[#This Row],[התחלה]]))","v":""}]
[null,null,{"$f":"IF(טבלה1[[#This Row],[סיום]]=\"\",\"\",טבלה1[[#This Row],[סיום]]-טבלה1[[#This Row],[התחלה]]+(טבלה1[[#This Row],[סיום]]<טבלה1[[#This Row],[התחלה]]))","v":""}]
[null,null,{"$f":"IF(טבלה1[[#This Row],[סיום]]=\"\",\"\",טבלה1[[#This Row],[סיום]]-טבלה1[[#This Row],[התחלה]]+(טבלה1[[#This Row],[סיום]]<טבלה1[[#This Row],[התחלה]]))","v":""}]
[null,null,{"$f":"IF(טבלה1[[#This Row],[סיום]]=\"\",\"\",טבלה1[[#This Row],[סיום]]-טבלה1[[#This Row],[התחלה]]+(טבלה1[[#This Row],[סיום]]<טבלה1[[#This Row],[התחלה]]))","v":""}]
[null,null,{"$f":"IF(טבלה1[[#This Row],[סיום]]=\"\",\"\",טבלה1[[#This Row],[סיום]]-טבלה1[[#This Row],[התחלה]]+(טבלה1[[#This Row],[סיום]]<טבלה1[[#This Row],[התחלה]]))","v":""}]
[null,null,{"$f":"IF(טבלה1[[#This Row],[סיום]]=\"\",\"\",טבלה1[[#This Row],[סיום]]-טבלה1[[#This Row],[התחלה]]+(טבלה1[[#This Row],[סיום]]<טבלה1[[#This Row],[התחלה]]))","v":""}]
[null,null,{"$f":"IF(טבלה1[[#This Row],[סיום]]=\"\",\"\",טבלה1[[#This Row],[סיום]]-טבלה1[[#This Row],[התחלה]]+(טבלה1[[#This Row],[סיום]]<טבלה1[[#This Row],[התחלה]]))","v":""}]
[null,null,{"$f":"IF(טבלה1[[#This Row],[סיום]]=\"\",\"\",טבלה1[[#This Row],[סיום]]-טבלה1[[#This Row],[התחלה]]+(טבלה1[[#This Row],[סיום]]<טבלה1[[#This Row],[התחלה]]))","v":""}]
[null,null,{"$f":"IF(טבלה1[[#This Row],[סיום]]=\"\",\"\",טבלה1[[#This Row],[סיום]]-טבלה1[[#This Row],[התחלה]]+(טבלה1[[#This Row],[סיום]]<טבלה1[[#This Row],[התחלה]]))","v":""}]
[null,null,{"$f":"IF(טבלה1[[#This Row],[סיום]]=\"\",\"\",טבלה1[[#This Row],[סיום]]-טבלה1[[#This Row],[התחלה]]+(טבלה1[[#This Row],[סיום]]<טבלה1[[#This Row],[התחלה]]))","v":""}]
[null,null,{"$f":"IF(טבלה1[[#This Row],[סיום]]=\"\",\"\",טבלה1[[#This Row],[סיום]]-טבלה1[[#This Row],[התחלה]]+(טבלה1[[#This Row],[סיום]]<טבלה1[[#This Row],[התחלה]]))","v":""}]
[null,null,{"$f":"IF(טבלה1[[#This Row],[סיום]]=\"\",\"\",טבלה1[[#This Row],[סיום]]-טבלה1[[#This Row],[התחלה]]+(טבלה1[[#This Row],[סיום]]<טבלה1[[#This Row],[התחלה]]))","v":""}]
[null,null,{"$f":"IF(טבלה1[[#This Row],[סיום]]=\"\",\"\",טבלה1[[#This Row],[סיום]]-טבלה1[[#This Row],[התחלה]]+(טבלה1[[#This Row],[סיום]]<טבלה1[[#This Row],[התחלה]]))","v":""}]
[null,null,{"$f":"IF(טבלה1[[#This Row],[סיום]]=\"\",\"\",טבלה1[[#This Row],[סיום]]-טבלה1[[#This Row],[התחלה]]+(טבלה1[[#This Row],[סיום]]<טבלה1[[#This Row],[התחלה]]))","v":""}]
[null,null,{"$f":"IF(טבלה1[[#This Row],[סיום]]=\"\",\"\",טבלה1[[#This Row],[סיום]]-טבלה1[[#This Row],[התחלה]]+(טבלה1[[#This Row],[סיום]]<טבלה1[[#This Row],[התחלה]]))","v":""}]
[null,null,{"$f":"IF(טבלה1[[#This Row],[סיום]]=\"\",\"\",טבלה1[[#This Row],[סיום]]-טבלה1[[#This Row],[התחלה]]+(טבלה1[[#This Row],[סיום]]<טבלה1[[#This Row],[התחלה]]))","v":""}]
[]
["נוצר ע\"י שמואל"]
["abc0533118127@gmail.com"]
[]
["עותק חופשי - סיסמא 1234"]
["נא שלחו לי גירסאות משופרות שיצרתם לתועלת החברים"]

{"sheet":"סך שעות","index":1,"n_rows":83,"n_cols":8,"rows_kept":83,"cut":false,"hidden":false,"merged":[[82,0,82,1],[2,0,2,2],[0,0,1,2],[1,4,1,5],[1,7,1,8],[2,4,3,5],[2,6,3,6],[2,7,3,8],[81,0,81,1]]}
["חישוב שעות עבודה"]
[null,null,null,null,"סה\"כ שעות",null,"שכר לשעה","לתשלום"]
["רשום את סך השעות שעבדת",null,null,null,{"$f":"SUM(טבלה13[סך השעות])","v":0},null,30,{"$f":"G3*E3*24","v":0}]
["סך השעות","הערות","תאריך"]
[]
[]
[]
[]
[]
[]
[]
[]
[]
[]
[]
[]
[]
[]
[]
[]
[]
[]
[]
[]
[]
[]
[]
[]
[]
[]
[]
[]
[]
[]
[]
[]
[]
[]
[]
[]
[]
[]
[]
[]
[]
[]
[]
[]
[]
[]
[]
[]
[]
[]
[]
[]
[]
[]
[]
[]
[]
[]
[]
[]
[]
[]
[]
[]
[]
[]
[]
[]
[]
[]
[]
[]
[]
[]
[]
[]
[]
["נוצר ע\"י שמואל"]
["abc0533118127@gmail.com"]

{"sheet":"עבודות מרובות","index":2,"n_rows":116,"n_cols":11,"rows_kept":116,"cut":false,"hidden":false,"merged":[[0,0,1,2],[2,0,2,2],[2,6,3,6],[2,7,3,7],[2,8,3,8],[114,0,114,2],[115,0,115,2],[6,6,6,9],[111,0,111,2],[112,0,112,2]]}
["רישום שעות עבודה לפי התחלה וסיום"]
[null,null,null,null,null,null,"כל שעות העבודה",null,"המשכורת שלי"]
["לחיצה כפולה על תא תציג את השעה הנוכחית",null,null,null,null,null,{"$f":"SUM(טבלה14[סה''''כ])","v":0},null,{"$f":"SUM(טבלה4[לתשלום])","v":0}]
["התחלה","סיום","סה''כ","העבודה שלי","תאריך"]
[null,null,{"$f":"IF(טבלה14[[#This Row],[סיום]]=\"\",\"\",טבלה14[[#This Row],[סיום]]-טבלה14[[#This Row],[התחלה]]+(טבלה14[[#This Row],[סיום]]<טבלה14[[#This Row],[התחלה]]))","v":""}]
[null,null,{"$f":"IF(טבלה14[[#This Row],[סיום]]=\"\",\"\",טבלה14[[#This Row],[סיום]]-טבלה14[[#This Row],[התחלה]]+(טבלה14[[#This Row],[סיום]]<טבלה14[[#This Row],[התחלה]]))","v":""}]
[null,null,{"$f":"IF(טבלה14[[#This Row],[סיום]]=\"\",\"\",טבלה14[[#This Row],[סיום]]-טבלה14[[#This Row],[התחלה]]+(טבלה14[[#This Row],[סיום]]<טבלה14[[#This Row],[התחלה]]))","v":""},null,null,null,"רשימת העבודות שלי - וסיכום שעות ותשלומים"]
[null,null,{"$f":"IF(טבלה14[[#This Row],[סיום]]=\"\",\"\",טבלה14[[#This Row],[סיום]]-טבלה14[[#This Row],[התחלה]]+(טבלה14[[#This Row],[סיום]]<טבלה14[[#This Row],[התחלה]]))","v":""},null,null,null,"העבודות שלי","שכר לשעה","סך שעות עבודה","לתשלום","שולם"]
[null,null,{"$f":"IF(טבלה14[[#This Row],[סיום]]=\"\",\"\",טבלה14[[#This Row],[סיום]]-טבלה14[[#This Row],[התחלה]]+(טבלה14[[#This Row],[סיום]]<טבלה14[[#This Row],[התחלה]]))","v":""},null,null,null,"דוגמא - חומש",30,{"$f":"IF(SUMIFS(טבלה14[סה''''כ],טבלה14[העבודה שלי],טבלה4[[#This Row],[העבודות שלי]])<0.0001,\"\",SUMIFS(טבלה14[סה''''כ],טבלה14[העבודה שלי],טבלה4[[#This Row],[העבודות שלי]]))","v":""},{"$f":"IFERROR(טבלה4[[#This Row],[סך שעות עבודה]]*טבלה4[[#This Row],[שכר לשעה]]*24,\"\")","v":""}]
[null,null,{"$f":"IF(טבלה14[[#This Row],[סיום]]=\"\",\"\",טבלה14[[#This Row],[סיום]]-טבלה14[[#This Row],[התחלה]]+(טבלה14[[#This Row],[סיום]]<טבלה14[[#This Row],[התחלה]]))","v":""},null,null,null,"דוגמא - משנה",40,{"$f":"IF(SUMIFS(טבלה14[סה''''כ],טבלה14[העבודה שלי],טבלה4[[#This Row],[העבודות שלי]])<0.0001,\"\",SUMIFS(טבלה14[סה''''כ],טבלה14[העבודה שלי],טבלה4[[#This Row],[העבודות שלי]]))","v":""},{"$f":"IFERROR(טבלה4[[#This Row],[סך שעות עבודה]]*טבלה4[[#This Row],[שכר לשעה]]*24,\"\")","v":""}]
[null,null,{"$f":"IF(טבלה14[[#This Row],[סיום]]=\"\",\"\",טבלה14[[#This Row],[סיום]]-טבלה14[[#This Row],[התחלה]]+(טבלה14[[#This Row],[סיום]]<טבלה14[[#This Row],[התחלה]]))","v":""},null,null,null,null,null,{"$f":"IF(SUMIFS(טבלה14[סה''''כ],טבלה14[העבודה שלי],טבלה4[[#This Row],[העבודות שלי]])<0.0001,\"\",SUMIFS(טבלה14[סה''''כ],טבלה14[העבודה שלי],טבלה4[[#This Row],[העבודות שלי]]))","v":""},{"$f":"IFERROR(טבלה4[[#This Row],[סך שעות עבודה]]*טבלה4[[#This Row],[שכר לשעה]]*24,\"\")","v":""}]
[null,null,{"$f":"IF(טבלה14[[#This Row],[סיום]]=\"\",\"\",טבלה14[[#This Row],[סיום]]-טבלה14[[#This Row],[התחלה]]+(טבלה14[[#This Row],[סיום]]<טבלה14[[#This Row],[התחלה]]))","v":""},null,null,null,null,null,{"$f":"IF(SUMIFS(טבלה14[סה''''כ],טבלה14[העבודה שלי],טבלה4[[#This Row],[העבודות שלי]])<0.0001,\"\",SUMIFS(טבלה14[סה''''כ],טבלה14[העבודה שלי],טבלה4[[#This Row],[העבודות שלי]]))","v":""},{"$f":"IFERROR(טבלה4[[#This Row],[סך שעות עבודה]]*טבלה4[[#This Row],[שכר לשעה]]*24,\"\")","v":""}]
[null,null,{"$f":"IF(טבלה14[[#This Row],[סיום]]=\"\",\"\",טבלה14[[#This Row],[סיום]]-טבלה14[[#This Row],[התחלה]]+(טבלה14[[#This Row],[סיום]]<טבלה14[[#This Row],[התחלה]]))","v":""},null,null,null,null,null,{"$f":"IF(SUMIFS(טבלה14[סה''''כ],טבלה14[העבודה שלי],טבלה4[[#This Row],[העבודות שלי]])<0.0001,\"\",SUMIFS(טבלה14[סה''''כ],טבלה14[העבודה שלי],טבלה4[[#This Row],[העבודות שלי]]))","v":""},{"$f":"IFERROR(טבלה4[[#This Row],[סך שעות עבודה]]*טבלה4[[#This Row],[שכר לשעה]]*24,\"\")","v":""}]
[null,null,{"$f":"IF(טבלה14[[#This Row],[סיום]]=\"\",\"\",טבלה14[[#This Row],[סיום]]-טבלה14[[#This Row],[התחלה]]+(טבלה14[[#This Row],[סיום]]<טבלה14[[#This Row],[התחלה]]))","v":""},null,null,null,null,null,{"$f":"IF(SUMIFS(טבלה14[סה''''כ],טבלה14[העבודה שלי],טבלה4[[#This Row],[העבודות שלי]])<0.0001,\"\",SUMIFS(טבלה14[סה''''כ],טבלה14[העבודה שלי],טבלה4[[#This Row],[העבודות שלי]]))","v":""},{"$f":"IFERROR(טבלה4[[#This Row],[סך שעות עבודה]]*טבלה4[[#This Row],[שכר לשעה]]*24,\"\")","v":""}]
[null,null,{"$f":"IF(טבלה14[[#This Row],[סיום]]=\"\",\"\",טבלה14[[#This Row],[סיום]]-טבלה14[[#This Row],[התחלה]]+(טבלה14[[#This Row],[סיום]]<טבלה14[[#This Row],[התחלה]]))","v":""},null,null,null,null,null,{"$f":"IF(SUMIFS(טבלה14[סה''''כ],טבלה14[העבודה שלי],טבלה4[[#This Row],[העבודות שלי]])<0.0001,\"\",SUMIFS(טבלה14[סה''''כ],טבלה14[העבודה שלי],טבלה4[[#This Row],[העבודות שלי]]))","v":""},{"$f":"IFERROR(טבלה4[[#This Row],[סך שעות עבודה]]*טבלה4[[#This Row],[שכר לשעה]]*24,\"\")","v":""}]
[null,null,{"$f":"IF(טבלה14[[#This Row],[סיום]]=\"\",\"\",טבלה14[[#This Row],[סיום]]-טבלה14[[#This Row],[התחלה]]+(טבלה14[[#This Row],[סיום]]<טבלה14[[#This Row],[התחלה]]))","v":""},null,null,null,null,null,{"$f":"IF(SUMIFS(טבלה14[סה''''כ],טבלה14[העבודה שלי],טבלה4[[#This Row],[העבודות שלי]])<0.0001,\"\",SUMIFS(טבלה14[סה''''כ],טבלה14[העבודה שלי],טבלה4[[#This Row],[העבודות שלי]]))","v":""},{"$f":"IFERROR(טבלה4[[#This Row],[סך שעות עבודה]]*טבלה4[[#This Row],[שכר לשעה]]*24,\"\")","v":""}]
[null,null,{"$f":"IF(טבלה14[[#This Row],[סיום]]=\"\",\"\",טבלה14[[#This Row],[סיום]]-טבלה14[[#This Row],[התחלה]]+(טבלה14[[#This Row],[סיום]]<טבלה14[[#This Row],[התחלה]]))","v":""}]
[null,null,{"$f":"IF(טבלה14[[#This Row],[סיום]]=\"\",\"\",טבלה14[[#This Row],[סיום]]-טבלה14[[#This Row],[התחלה]]+(טבלה14[[#This Row],[סיום]]<טבלה14[[#This Row],[התחלה]]))","v":""}]
[null,null,{"$f":"IF(טבלה14[[#This Row],[סיום]]=\"\",\"\",טבלה14[[#This Row],[סיום]]-טבלה14[[#This Row],[התחלה]]+(טבלה14[[#This Row],[סיום]]<טבלה14[[#This Row],[התחלה]]))","v":""}]
[null,null,{"$f":"IF(טבלה14[[#This Row],[סיום]]=\"\",\"\",טבלה14[[#This Row],[סיום]]-טבלה14[[#This Row],[התחלה]]+(טבלה14[[#This Row],[סיום]]<טבלה14[[#This Row],[התחלה]]))","v":""}]
[null,null,{"$f":"IF(טבלה14[[#This Row],[סיום]]=\"\",\"\",טבלה14[[#This Row],[סיום]]-טבלה14[[#This Row],[התחלה]]+(טבלה14[[#This Row],[סיום]]<טבלה14[[#This Row],[התחלה]]))","v":""}]
[null,null,{"$f":"IF(טבלה14[[#This Row],[סיום]]=\"\",\"\",טבלה14[[#This Row],[סיום]]-טבלה14[[#This Row],[התחלה]]+(טבלה14[[#This Row],[סיום]]<טבלה14[[#This Row],[התחלה]]))","v":""}]
[null,null,{"$f":"IF(טבלה14[[#This Row],[סיום]]=\"\",\"\",טבלה14[[#This Row],[סיום]]-טבלה14[[#This Row],[התחלה]]+(טבלה14[[#This Row],[סיום]]<טבלה14[[#This Row],[התחלה]]))","v":""}]
[null,null,{"$f":"IF(טבלה14[[#This Row],[סיום]]=\"\",\"\",טבלה14[[#This Row],[סיום]]-טבלה14[[#This Row],[התחלה]]+(טבלה14[[#This Row],[סיום]]<טבלה14[[#This Row],[התחלה]]))","v":""}]
[null,null,{"$f":"IF(טבלה14[[#This Row],[סיום]]=\"\",\"\",טבלה14[[#This Row],[סיום]]-טבלה14[[#This Row],[התחלה]]+(טבלה14[[#This Row],[סיום]]<טבלה14[[#This Row],[התחלה]]))","v":""}]
[null,null,{"$f":"IF(טבלה14[[#This Row],[סיום]]=\"\",\"\",טבלה14[[#This Row],[סיום]]-טבלה14[[#This Row],[התחלה]]+(טבלה14[[#This Row],[סיום]]<טבלה14[[#This Row],[התחלה]]))","v":""}]
[null,null,{"$f":"IF(טבלה14[[#This Row],[סיום]]=\"\",\"\",טבלה14[[#This Row],[סיום]]-טבלה14[[#This Row],[התחלה]]+(טבלה14[[#This Row],[סיום]]<טבלה14[[#This Row],[התחלה]]))","v":""}]
[null,null,{"$f":"IF(טבלה14[[#This Row],[סיום]]=\"\",\"\",טבלה14[[#This Row],[סיום]]-טבלה14[[#This Row],[התחלה]]+(טבלה14[[#This Row],[סיום]]<טבלה14[[#This Row],[התחלה]]))","v":""}]
[null,null,{"$f":"IF(טבלה14[[#This Row],[סיום]]=\"\",\"\",טבלה14[[#This Row],[סיום]]-טבלה14[[#This Row],[התחלה]]+(טבלה14[[#This Row],[סיום]]<טבלה14[[#This Row],[התחלה]]))","v":""}]
[null,null,{"$f":"IF(טבלה14[[#This Row],[סיום]]=\"\",\"\",טבלה14[[#This Row],[סיום]]-טבלה14[[#This Row],[התחלה]]+(טבלה14[[#This Row],[סיום]]<טבלה14[[#This Row],[התחלה]]))","v":""}]
[null,null,{"$f":"IF(טבלה14[[#This Row],[סיום]]=\"\",\"\",טבלה14[[#This Row],[סיום]]-טבלה14[[#This Row],[התחלה]]+(טבלה14[[#This Row],[סיום]]<טבלה14[[#This Row],[התחלה]]))","v":""}]
[null,null,{"$f":"IF(טבלה14[[#This Row],[סיום]]=\"\",\"\",טבלה14[[#This Row],[סיום]]-טבלה14[[#This Row],[התחלה]]+(טבלה14[[#This Row],[סיום]]<טבלה14[[#This Row],[התחלה]]))","v":""}]
[null,null,{"$f":"IF(טבלה14[[#This Row],[סיום]]=\"\",\"\",טבלה14[[#This Row],[סיום]]-טבלה14[[#This Row],[התחלה]]+(טבלה14[[#This Row],[סיום]]<טבלה14[[#This Row],[התחלה]]))","v":""}]
[null,null,{"$f":"IF(טבלה14[[#This Row],[סיום]]=\"\",\"\",טבלה14[[#This Row],[סיום]]-טבלה14[[#This Row],[התחלה]]+(טבלה14[[#This Row],[סיום]]<טבלה14[[#This Row],[התחלה]]))","v":""}]
[null,null,{"$f":"IF(טבלה14[[#This Row],[סיום]]=\"\",\"\",טבלה14[[#This Row],[סיום]]-טבלה14[[#This Row],[התחלה]]+(טבלה14[[#This Row],[סיום]]<טבלה14[[#This Row],[התחלה]]))","v":""}]
[null,null,{"$f":"IF(טבלה14[[#This Row],[סיום]]=\"\",\"\",טבלה14[[#This Row],[סיום]]-טבלה14[[#This Row],[התחלה]]+(טבלה14[[#This Row],[סיום]]<טבלה14[[#This Row],[התחלה]]))","v":""}]
[null,null,{"$f":"IF(טבלה14[[#This Row],[סיום]]=\"\",\"\",טבלה14[[#This Row],[סיום]]-טבלה14[[#This Row],[התחלה]]+(טבלה14[[#This Row],[סיום]]<טבלה14[[#This Row],[התחלה]]))","v":""}]
[null,null,{"$f":"IF(טבלה14[[#This Row],[סיום]]=\"\",\"\",טבלה14[[#This Row],[סיום]]-טבלה14[[#This Row],[התחלה]]+(טבלה14[[#This Row],[סיום]]<טבלה14[[#This Row],[התחלה]]))","v":""}]
[null,null,{"$f":"IF(טבלה14[[#This Row],[סיום]]=\"\",\"\",טבלה14[[#This Row],[סיום]]-טבלה14[[#This Row],[התחלה]]+(טבלה14[[#This Row],[סיום]]<טבלה14[[#This Row],[התחלה]]))","v":""}]
[null,null,{"$f":"IF(טבלה14[[#This Row],[סיום]]=\"\",\"\",טבלה14[[#This Row],[סיום]]-טבלה14[[#This Row],[התחלה]]+(טבלה14[[#This Row],[סיום]]<טבלה14[[#This Row],[התחלה]]))","v":""}]
[null,null,{"$f":"IF(טבלה14[[#This Row],[סיום]]=\"\",\"\",טבלה14[[#This Row],[סיום]]-טבלה14[[#This Row],[התחלה]]+(טבלה14[[#This Row],[סיום]]<טבלה14[[#This Row],[התחלה]]))","v":""}]
[null,null,{"$f":"IF(טבלה14[[#This Row],[סיום]]=\"\",\"\",טבלה14[[#This Row],[סיום]]-טבלה14[[#This Row],[התחלה]]+(טבלה14[[#This Row],[סיום]]<טבלה14[[#This Row],[התחלה]]))","v":""}]
[null,null,{"$f":"IF(טבלה14[[#This Row],[סיום]]=\"\",\"\",טבלה14[[#This Row],[סיום]]-טבלה14[[#This Row],[התחלה]]+(טבלה14[[#This Row],[סיום]]<טבלה14[[#This Row],[התחלה]]))","v":""}]
[null,null,{"$f":"IF(טבלה14[[#This Row],[סיום]]=\"\",\"\",טבלה14[[#This Row],[סיום]]-טבלה14[[#This Row],[התחלה]]+(טבלה14[[#This Row],[סיום]]<טבלה14[[#This Row],[התחלה]]))","v":""}]
[null,null,{"$f":"IF(טבלה14[[#This Row],[סיום]]=\"\",\"\",טבלה14[[#This Row],[סיום]]-טבלה14[[#This Row],[התחלה]]+(טבלה14[[#This Row],[סיום]]<טבלה14[[#This Row],[התחלה]]))","v":""}]
[null,null,{"$f":"IF(טבלה14[[#This Row],[סיום]]=\"\",\"\",טבלה14[[#This Row],[סיום]]-טבלה14[[#This Row],[התחלה]]+(טבלה14[[#This Row],[סיום]]<טבלה14[[#This Row],[התחלה]]))","v":""}]
[null,null,{"$f":"IF(טבלה14[[#This Row],[סיום]]=\"\",\"\",טבלה14[[#This Row],[סיום]]-טבלה14[[#This Row],[התחלה]]+(טבלה14[[#This Row],[סיום]]<טבלה14[[#This Row],[התחלה]]))","v":""}]
[null,null,{"$f":"IF(טבלה14[[#This Row],[סיום]]=\"\",\"\",טבלה14[[#This Row],[סיום]]-טבלה14[[#This Row],[התחלה]]+(טבלה14[[#This Row],[סיום]]<טבלה14[[#This Row],[התחלה]]))","v":""}]
[null,null,{"$f":"IF(טבלה14[[#This Row],[סיום]]=\"\",\"\",טבלה14[[#This Row],[סיום]]-טבלה14[[#This Row],[התחלה]]+(טבלה14[[#This Row],[סיום]]<טבלה14[[#This Row],[התחלה]]))","v":""}]
[null,null,{"$f":"IF(טבלה14[[#This Row],[סיום]]=\"\",\"\",טבלה14[[#This Row],[סיום]]-טבלה14[[#This Row],[התחלה]]+(טבלה14[[#This Row],[סיום]]<טבלה14[[#This Row],[התחלה]]))","v":""}]
[null,null,{"$f":"IF(טבלה14[[#This Row],[סיום]]=\"\",\"\",טבלה14[[#This Row],[סיום]]-טבלה14[[#This Row],[התחלה]]+(טבלה14[[#This Row],[סיום]]<טבלה14[[#This Row],[התחלה]]))","v":""}]
[null,null,{"$f":"IF(טבלה14[[#This Row],[סיום]]=\"\",\"\",טבלה14[[#This Row],[סיום]]-טבלה14[[#This Row],[התחלה]]+(טבלה14[[#This Row],[סיום]]<טבלה14[[#This Row],[התחלה]]))","v":""}]
[null,null,{"$f":"IF(טבלה14[[#This Row],[סיום]]=\"\",\"\",טבלה14[[#This Row],[סיום]]-טבלה14[[#This Row],[התחלה]]+(טבלה14[[#This Row],[סיום]]<טבלה14[[#This Row],[התחלה]]))","v":""}]
[null,null,{"$f":"IF(טבלה14[[#This Row],[סיום]]=\"\",\"\",טבלה14[[#This Row],[סיום]]-טבלה14[[#This Row],[התחלה]]+(טבלה14[[#This Row],[סיום]]<טבלה14[[#This Row],[התחלה]]))","v":""}]
[null,null,{"$f":"IF(טבלה14[[#This Row],[סיום]]=\"\",\"\",טבלה14[[#This Row],[סיום]]-טבלה14[[#This Row],[התחלה]]+(טבלה14[[#This Row],[סיום]]<טבלה14[[#This Row],[התחלה]]))","v":""}]
[null,null,{"$f":"IF(טבלה14[[#This Row],[סיום]]=\"\",\"\",טבלה14[[#This Row],[סיום]]-טבלה14[[#This Row],[התחלה]]+(טבלה14[[#This Row],[סיום]]<טבלה14[[#This Row],[התחלה]]))","v":""}]
[null,null,{"$f":"IF(טבלה14[[#This Row],[סיום]]=\"\",\"\",טבלה14[[#This Row],[סיום]]-טבלה14[[#This Row],[התחלה]]+(טבלה14[[#This Row],[סיום]]<טבלה14[[#This Row],[התחלה]]))","v":""}]
[null,null,{"$f":"IF(טבלה14[[#This Row],[סיום]]=\"\",\"\",טבלה14[[#This Row],[סיום]]-טבלה14[[#This Row],[התחלה]]+(טבלה14[[#This Row],[סיום]]<טבלה14[[#This Row],[התחלה]]))","v":""}]
[null,null,{"$f":"IF(טבלה14[[#This Row],[סיום]]=\"\",\"\",טבלה14[[#This Row],[סיום]]-טבלה14[[#This Row],[התחלה]]+(טבלה14[[#This Row],[סיום]]<טבלה14[[#This Row],[התחלה]]))","v":""}]
[null,null,{"$f":"IF(טבלה14[[#This Row],[סיום]]=\"\",\"\",טבלה14[[#This Row],[סיום]]-טבלה14[[#This Row],[התחלה]]+(טבלה14[[#This Row],[סיום]]<טבלה14[[#This Row],[התחלה]]))","v":""}]
[null,null,{"$f":"IF(טבלה14[[#This Row],[סיום]]=\"\",\"\",טבלה14[[#This Row],[סיום]]-טבלה14[[#This Row],[התחלה]]+(טבלה14[[#This Row],[סיום]]<טבלה14[[#This Row],[התחלה]]))","v":""}]
[null,null,{"$f":"IF(טבלה14[[#This Row],[סיום]]=\"\",\"\",טבלה14[[#This Row],[סיום]]-טבלה14[[#This Row],[התחלה]]+(טבלה14[[#This Row],[סיום]]<טבלה14[[#This Row],[התחלה]]))","v":""}]
[null,null,{"$f":"IF(טבלה14[[#This Row],[סיום]]=\"\",\"\",טבלה14[[#This Row],[סיום]]-טבלה14[[#This Row],[התחלה]]+(טבלה14[[#This Row],[סיום]]<טבלה14[[#This Row],[התחלה]]))","v":""}]
[null,null,{"$f":"IF(טבלה14[[#This Row],[סיום]]=\"\",\"\",טבלה14[[#This Row],[סיום]]-טבלה14[[#This Row],[התחלה]]+(טבלה14[[#This Row],[סיום]]<טבלה14[[#This Row],[התחלה]]))","v":""}]
[null,null,{"$f":"IF(טבלה14[[#This Row],[סיום]]=\"\",\"\",טבלה14[[#This Row],[סיום]]-טבלה14[[#This Row],[התחלה]]+(טבלה14[[#This Row],[סיום]]<טבלה14[[#This Row],[התחלה]]))","v":""}]
[null,null,{"$f":"IF(טבלה14[[#This Row],[סיום]]=\"\",\"\",טבלה14[[#This Row],[סיום]]-טבלה14[[#This Row],[התחלה]]+(טבלה14[[#This Row],[סיום]]<טבלה14[[#This Row],[התחלה]]))","v":""}]
[null,null,{"$f":"IF(טבלה14[[#This Row],[סיום]]=\"\",\"\",טבלה14[[#This Row],[סיום]]-טבלה14[[#This Row],[התחלה]]+(טבלה14[[#This Row],[סיום]]<טבלה14[[#This Row],[התחלה]]))","v":""}]
[null,null,{"$f":"IF(טבלה14[[#This Row],[סיום]]=\"\",\"\",טבלה14[[#This Row],[סיום]]-טבלה14[[#This Row],[התחלה]]+(טבלה14[[#This Row],[סיום]]<טבלה14[[#This Row],[התחלה]]))","v":""}]
[null,null,{"$f":"IF(טבלה14[[#This Row],[סיום]]=\"\",\"\",טבלה14[[#This Row],[סיום]]-טבלה14[[#This Row],[התחלה]]+(טבלה14[[#This Row],[סיום]]<טבלה14[[#This Row],[התחלה]]))","v":""}]
[null,null,{"$f":"IF(טבלה14[[#This Row],[סיום]]=\"\",\"\",טבלה14[[#This Row],[סיום]]-טבלה14[[#This Row],[התחלה]]+(טבלה14[[#This Row],[סיום]]<טבלה14[[#This Row],[התחלה]]))","v":""}]
[null,null,{"$f":"IF(טבלה14[[#This Row],[סיום]]=\"\",\"\",טבלה14[[#This Row],[סיום]]-טבלה14[[#This Row],[התחלה]]+(טבלה14[[#This Row],[סיום]]<טבלה14[[#This Row],[התחלה]]))","v":""}]
[null,null,{"$f":"IF(טבלה14[[#This Row],[סיום]]=\"\",\"\",טבלה14[[#This Row],[סיום]]-טבלה14[[#This Row],[התחלה]]+(טבלה14[[#This Row],[סיום]]<טבלה14[[#This Row],[התחלה]]))","v":""}]
[null,null,{"$f":"IF(טבלה14[[#This Row],[סיום]]=\"\",\"\",טבלה14[[#This Row],[סיום]]-טבלה14[[#This Row],[התחלה]]+(טבלה14[[#This Row],[סיום]]<טבלה14[[#This Row],[התחלה]]))","v":""}]
[null,null,{"$f":"IF(טבלה14[[#This Row],[סיום]]=\"\",\"\",טבלה14[[#This Row],[סיום]]-טבלה14[[#This Row],[התחלה]]+(טבלה14[[#This Row],[סיום]]<טבלה14[[#This Row],[התחלה]]))","v":""}]
[null,null,{"$f":"IF(טבלה14[[#This Row],[סיום]]=\"\",\"\",טבלה14[[#This Row],[סיום]]-טבלה14[[#This Row],[התחלה]]+(טבלה14[[#This Row],[סיום]]<טבלה14[[#This Row],[התחלה]]))","v":""}]
[null,null,{"$f":"IF(טבלה14[[#This Row],[סיום]]=\"\",\"\",טבלה14[[#This Row],[סיום]]-טבלה14[[#This Row],[התחלה]]+(טבלה14[[#This Row],[סיום]]<טבלה14[[#This Row],[התחלה]]))","v":""}]
[null,null,{"$f":"IF(טבלה14[[#This Row],[סיום]]=\"\",\"\",טבלה14[[#This Row],[סיום]]-טבלה14[[#This Row],[התחלה]]+(טבלה14[[#This Row],[סיום]]<טבלה14[[#This Row],[התחלה]]))","v":""}]
[null,null,{"$f":"IF(טבלה14[[#This Row],[סיום]]=\"\",\"\",טבלה14[[#This Row],[סיום]]-טבלה14[[#This Row],[התחלה]]+(טבלה14[[#This Row],[סיום]]<טבלה14[[#This Row],[התחלה]]))","v":""}]
[null,null,{"$f":"IF(טבלה14[[#This Row],[סיום]]=\"\",\"\",טבלה14[[#This Row],[סיום]]-טבלה14[[#This Row],[התחלה]]+(טבלה14[[#This Row],[סיום]]<טבלה14[[#This Row],[התחלה]]))","v":""}]
[null,null,{"$f":"IF(טבלה14[[#This Row],[סיום]]=\"\",\"\",טבלה14[[#This Row],[סיום]]-טבלה14[[#This Row],[התחלה]]+(טבלה14[[#This Row],[סיום]]<טבלה14[[#This Row],[התחלה]]))","v":""}]
[null,null,{"$f":"IF(טבלה14[[#This Row],[סיום]]=\"\",\"\",טבלה14[[#This Row],[סיום]]-טבלה14[[#This Row],[התחלה]]+(טבלה14[[#This Row],[סיום]]<טבלה14[[#This Row],[התחלה]]))","v":""}]
[null,null,{"$f":"IF(טבלה14[[#This Row],[סיום]]=\"\",\"\",טבלה14[[#This Row],[סיום]]-טבלה14[[#This Row],[התחלה]]+(טבלה14[[#This Row],[סיום]]<טבלה14[[#This Row],[התחלה]]))","v":""}]
[null,null,{"$f":"IF(טבלה14[[#This Row],[סיום]]=\"\",\"\",טבלה14[[#This Row],[סיום]]-טבלה14[[#This Row],[התחלה]]+(טבלה14[[#This Row],[סיום]]<טבלה14[[#This Row],[התחלה]]))","v":""}]
[null,null,{"$f":"IF(טבלה14[[#This Row],[סיום]]=\"\",\"\",טבלה14[[#This Row],[סיום]]-טבלה14[[#This Row],[התחלה]]+(טבלה14[[#This Row],[סיום]]<טבלה14[[#This Row],[התחלה]]))","v":""}]
[null,null,{"$f":"IF(טבלה14[[#This Row],[סיום]]=\"\",\"\",טבלה14[[#This Row],[סיום]]-טבלה14[[#This Row],[התחלה]]+(טבלה14[[#This Row],[סיום]]<טבלה14[[#This Row],[התחלה]]))","v":""}]
[null,null,{"$f":"IF(טבלה14[[#This Row],[סיום]]=\"\",\"\",טבלה14[[#This Row],[סיום]]-טבלה14[[#This Row],[התחלה]]+(טבלה14[[#This Row],[סיום]]<טבלה14[[#This Row],[התחלה]]))","v":""}]
[null,null,{"$f":"IF(טבלה14[[#This Row],[סיום]]=\"\",\"\",טבלה14[[#This Row],[סיום]]-טבלה14[[#This Row],[התחלה]]+(טבלה14[[#This Row],[סיום]]<טבלה14[[#This Row],[התחלה]]))","v":""}]
[null,null,{"$f":"IF(טבלה14[[#This Row],[סיום]]=\"\",\"\",טבלה14[[#This Row],[סיום]]-טבלה14[[#This Row],[התחלה]]+(טבלה14[[#This Row],[סיום]]<טבלה14[[#This Row],[התחלה]]))","v":""}]
[null,null,{"$f":"IF(טבלה14[[#This Row],[סיום]]=\"\",\"\",טבלה14[[#This Row],[סיום]]-טבלה14[[#This Row],[התחלה]]+(טבלה14[[#This Row],[סיום]]<טבלה14[[#This Row],[התחלה]]))","v":""}]
[null,null,{"$f":"IF(טבלה14[[#This Row],[סיום]]=\"\",\"\",טבלה14[[#This Row],[סיום]]-טבלה14[[#This Row],[התחלה]]+(טבלה14[[#This Row],[סיום]]<טבלה14[[#This Row],[התחלה]]))","v":""}]
[null,null,{"$f":"IF(טבלה14[[#This Row],[סיום]]=\"\",\"\",טבלה14[[#This Row],[סיום]]-טבלה14[[#This Row],[התחלה]]+(טבלה14[[#This Row],[סיום]]<טבלה14[[#This Row],[התחלה]]))","v":""}]
[null,null,{"$f":"IF(טבלה14[[#This Row],[סיום]]=\"\",\"\",טבלה14[[#This Row],[סיום]]-טבלה14[[#This Row],[התחלה]]+(טבלה14[[#This Row],[סיום]]<טבלה14[[#This Row],[התחלה]]))","v":""}]
[null,null,{"$f":"IF(טבלה14[[#This Row],[סיום]]=\"\",\"\",טבלה14[[#This Row],[סיום]]-טבלה14[[#This Row],[התחלה]]+(טבלה14[[#This Row],[סיום]]<טבלה14[[#This Row],[התחלה]]))","v":""}]
[null,null,{"$f":"IF(טבלה14[[#This Row],[סיום]]=\"\",\"\",טבלה14[[#This Row],[סיום]]-טבלה14[[#This Row],[התחלה]]+(טבלה14[[#This Row],[סיום]]<טבלה14[[#This Row],[התחלה]]))","v":""}]
[null,null,{"$f":"IF(טבלה14[[#This Row],[סיום]]=\"\",\"\",טבלה14[[#This Row],[סיום]]-טבלה14[[#This Row],[התחלה]]+(טבלה14[[#This Row],[סיום]]<טבלה14[[#This Row],[התחלה]]))","v":""}]
[null,null,{"$f":"IF(טבלה14[[#This Row],[סיום]]=\"\",\"\",טבלה14[[#This Row],[סיום]]-טבלה14[[#This Row],[התחלה]]+(טבלה14[[#This Row],[סיום]]<טבלה14[[#This Row],[התחלה]]))","v":""}]
[null,null,{"$f":"IF(טבלה14[[#This Row],[סיום]]=\"\",\"\",טבלה14[[#This Row],[סיום]]-טבלה14[[#This Row],[התחלה]]+(טבלה14[[#This Row],[סיום]]<טבלה14[[#This Row],[התחלה]]))","v":""}]
[null,null,{"$f":"IF(טבלה14[[#This Row],[סיום]]=\"\",\"\",טבלה14[[#This Row],[סיום]]-טבלה14[[#This Row],[התחלה]]+(טבלה14[[#This Row],[סיום]]<טבלה14[[#This Row],[התחלה]]))","v":""}]
[null,null,{"$f":"IF(טבלה14[[#This Row],[סיום]]=\"\",\"\",טבלה14[[#This Row],[סיום]]-טבלה14[[#This Row],[התחלה]]+(טבלה14[[#This Row],[סיום]]<טבלה14[[#This Row],[התחלה]]))","v":""}]
[null,null,{"$f":"IF(טבלה14[[#This Row],[סיום]]=\"\",\"\",טבלה14[[#This Row],[סיום]]-טבלה14[[#This Row],[התחלה]]+(טבלה14[[#This Row],[סיום]]<טבלה14[[#This Row],[התחלה]]))","v":""}]
[null,null,{"$f":"IF(טבלה14[[#This Row],[סיום]]=\"\",\"\",טבלה14[[#This Row],[סיום]]-טבלה14[[#This Row],[התחלה]]+(טבלה14[[#This Row],[סיום]]<טבלה14[[#This Row],[התחלה]]))","v":""}]
[null,null,{"$f":"IF(טבלה14[[#This Row],[סיום]]=\"\",\"\",טבלה14[[#This Row],[סיום]]-טבלה14[[#This Row],[התחלה]]+(טבלה14[[#This Row],[סיום]]<טבלה14[[#This Row],[התחלה]]))","v":""}]
[null,null,{"$f":"IF(טבלה14[[#This Row],[סיום]]=\"\",\"\",טבלה14[[#This Row],[סיום]]-טבלה14[[#This Row],[התחלה]]+(טבלה14[[#This Row],[סיום]]<טבלה14[[#This Row],[התחלה]]))","v":""}]
[null,null,{"$f":"IF(טבלה14[[#This Row],[סיום]]=\"\",\"\",טבלה14[[#This Row],[סיום]]-טבלה14[[#This Row],[התחלה]]+(טבלה14[[#This Row],[סיום]]<טבלה14[[#This Row],[התחלה]]))","v":""}]
[null,null,{"$f":"IF(טבלה14[[#This Row],[סיום]]=\"\",\"\",טבלה14[[#This Row],[סיום]]-טבלה14[[#This Row],[התחלה]]+(טבלה14[[#This Row],[סיום]]<טבלה14[[#This Row],[התחלה]]))","v":""}]
[null,null,{"$f":"IF(טבלה14[[#This Row],[סיום]]=\"\",\"\",טבלה14[[#This Row],[סיום]]-טבלה14[[#This Row],[התחלה]]+(טבלה14[[#This Row],[סיום]]<טבלה14[[#This Row],[התחלה]]))","v":""}]
[null,null,{"$f":"IF(טבלה14[[#This Row],[סיום]]=\"\",\"\",טבלה14[[#This Row],[סיום]]-טבלה14[[#This Row],[התחלה]]+(טבלה14[[#This Row],[סיום]]<טבלה14[[#This Row],[התחלה]]))","v":""}]
[null,null,{"$f":"IF(טבלה14[[#This Row],[סיום]]=\"\",\"\",טבלה14[[#This Row],[סיום]]-טבלה14[[#This Row],[התחלה]]+(טבלה14[[#This Row],[סיום]]<טבלה14[[#This Row],[התחלה]]))","v":""}]
[null,null,{"$f":"IF(טבלה14[[#This Row],[סיום]]=\"\",\"\",טבלה14[[#This Row],[סיום]]-טבלה14[[#This Row],[התחלה]]+(טבלה14[[#This Row],[סיום]]<טבלה14[[#This Row],[התחלה]]))","v":""}]
[null,null,{"$f":"IF(טבלה14[[#This Row],[סיום]]=\"\",\"\",טבלה14[[#This Row],[סיום]]-טבלה14[[#This Row],[התחלה]]+(טבלה14[[#This Row],[סיום]]<טבלה14[[#This Row],[התחלה]]))","v":""}]
[]
["נוצר ע\"י שמואל"]
["abc0533118127@gmail.com"]
[]
["עותק חופשי - סיסמא 1234"]
["נא שלחו לי גירסאות משופרות שיצרתם לתועלת החברים"]

{"sheet":"יעדים","index":3,"n_rows":103,"n_cols":21,"rows_kept":103,"cut":false,"hidden":false,"merged":[[4,19,4,20],[6,8,6,11],[10,19,10,20],[16,19,16,20],[101,0,101,2],[102,0,102,2],[0,0,1,2],[2,0,2,2],[2,8,3,8],[2,9,3,9],[2,10,3,10],[2,11,3,11]]}
["רישום שעות עבודה לפי התחלה וסיום"]
[null,null,null,null,null,null,null,null,"כל שעות העבודה",null,"המשכורת שלי","עמידה ביעד",null,null,null,null,null,"עמודה",null,"הצג תוצאות עבור יעד:"]
["לחיצה כפולה על תא תציג את השעה הנוכחית",null,null,null,null,null,null,null,{"$f":"SUM(טבלה147[סה''''כ])","v":0},null,{"$f":"SUM(טבלה48[לתשלום])","v":0},{"$f":"VLOOKUP(T3,טבלה8[],4)","v":0},null,null,null,null,null,"מוסתרת",null,"א. כמה שעות לעבוד היום"]
["התחלה","סיום","סה''כ","העבודה שלי","תאריך","חודש","שבוע"]
[null,null,{"$f":"IF(טבלה147[[#This Row],[סיום]]=\"\",\"\",טבלה147[[#This Row],[סיום]]-טבלה147[[#This Row],[התחלה]]+(טבלה147[[#This Row],[סיום]]<טבלה147[[#This Row],[התחלה]]))","v":""},null,null,{"$f":"IF(טבלה147[[#This Row],[תאריך]]=\"\",\"\",MONTH(טבלה147[[#This Row],[תאריך]]))","v":""},{"$f":"IF(טבלה147[[#This Row],[תאריך]]=\"\",\"\",_xlfn.ISOWEEKNUM(טבלה147[[#This Row],[תאריך]]))","v":""},null,null,null,null,null,null,null,null,null,null,null,null,"פילוח נתוני עבודה"]
[null,null,{"$f":"IF(טבלה147[[#This Row],[סיום]]=\"\",\"\",טבלה147[[#This Row],[סיום]]-טבלה147[[#This Row],[התחלה]]+(טבלה147[[#This Row],[סיום]]<טבלה147[[#This Row],[התחלה]]))","v":""},null,null,{"$f":"IF(טבלה147[[#This Row],[תאריך]]=\"\",\"\",MONTH(טבלה147[[#This Row],[תאריך]]))","v":""},{"$f":"IF(טבלה147[[#This Row],[תאריך]]=\"\",\"\",_xlfn.ISOWEEKNUM(טבלה147[[#This Row],[תאריך]]))","v":""},null,null,null,null,null,null,null,null,null,null,"טווח יעד:",null,"שעות עבודה היום",{"$f":"SUMIFS(טבלה147[סה''''כ],טבלה147[תאריך],$R$13)","v":0}]
[null,null,{"$f":"IF(טבלה147[[#This Row],[סיום]]=\"\",\"\",טבלה147[[#This Row],[סיום]]-טבלה147[[#This Row],[התחלה]]+(טבלה147[[#This Row],[סיום]]<טבלה147[[#This Row],[התחלה]]))","v":""},null,null,{"$f":"IF(טבלה147[[#This Row],[תאריך]]=\"\",\"\",MONTH(טבלה147[[#This Row],[תאריך]]))","v":""},{"$f":"IF(טבלה147[[#This Row],[תאריך]]=\"\",\"\",_xlfn.ISOWEEKNUM(טבלה147[[#This Row],[תאריך]]))","v":""},null,"רשימת העבודות שלי - וסיכום שעות ותשלומים",null,null,null,null,null,null,null,null,"יומי",null,"שעות עבודה השבוע",{"$f":"SUMIFS(טבלה147[סה''''כ],טבלה147[שבוע],$R$15)","v":0}]
[null,null,{"$f":"IF(טבלה147[[#This Row],[סיום]]=\"\",\"\",טבלה147[[#This Row],[סיום]]-טבלה147[[#This Row],[התחלה]]+(טבלה147[[#This Row],[סיום]]<טבלה147[[#This Row],[התחלה]]))","v":""},null,null,{"$f":"IF(טבלה147[[#This Row],[תאריך]]=\"\",\"\",MONTH(טבלה147[[#This Row],[תאריך]]))","v":""},{"$f":"IF(טבלה147[[#This Row],[תאריך]]=\"\",\"\",_xlfn.ISOWEEKNUM(טבלה147[[#This Row],[תאריך]]))","v":""},null,"העבודות שלי","שכר לשעה","סך שעות עבודה","לתשלום","שולם","עבודה היום","עבודה השבוע","עבודה החודש",null,"שבועי",null,"שעות עבודה החודש",{"$f":"SUMIFS(טבלה147[סה''''כ],טבלה147[חודש],$R$17)","v":0}]
[null,null,{"$f":"IF(טבלה147[[#This Row],[סיום]]=\"\",\"\",טבלה147[[#This Row],[סיום]]-טבלה147[[#This Row],[התחלה]]+(טבלה147[[#This Row],[סיום]]<טבלה147[[#This Row],[התחלה]]))","v":""},null,null,{"$f":"IF(טבלה147[[#This Row],[תאריך]]=\"\",\"\",MONTH(טבלה147[[#This Row],[תאריך]]))","v":""},{"$f":"IF(טבלה147[[#This Row],[תאריך]]=\"\",\"\",_xlfn.ISOWEEKNUM(טבלה147[[#This Row],[תאריך]]))","v":""},null,"חומש",40,{"$f":"IF(SUMIFS(טבלה147[סה''''כ],טבלה147[העבודה שלי],טבלה48[[#This Row],[העבודות שלי]])<0.0001,\"\",SUMIFS(טבלה147[סה''''כ],טבלה147[העבודה שלי],טבלה48[[#This Row],[העבודות שלי]]))","v":""},{"$f":"IFERROR(טבלה48[[#This Row],[סך שעות עבודה]]*טבלה48[[#This Row],[שכר לשעה]]*24,\"\")","v":""},null,{"$f":"SUMIFS(טבלה147[סה''''כ],טבלה147[העבודה שלי],טבלה48[[#This Row],[העבודות שלי]],טבלה147[תאריך],$R$13)","v":"00:00:00"},{"$f":"SUMIFS(טבלה147[סה''''כ],טבלה147[העבודה שלי],טבלה48[[#This Row],[העבודות שלי]],טבלה147[שבוע],$R$15)","v":0},{"$f":"SUMIFS(טבלה147[סה''''כ],טבלה147[העבודה שלי],טבלה48[[#This Row],[העבודות שלי]],טבלה147[חודש],$R$17)","v":0},null,"חודשי",null,"שעות עבודה בגליון זה",{"$f":"I3","v":0}]
[null,null,{"$f":"IF(טבלה147[[#This Row],[סיום]]=\"\",\"\",טבלה147[[#This Row],[סיום]]-טבלה147[[#This Row],[התחלה]]+(טבלה147[[#This Row],[סיום]]<טבלה147[[#This Row],[התחלה]]))","v":""},null,null,{"$f":"IF(טבלה147[[#This Row],[תאריך]]=\"\",\"\",MONTH(טבלה147[[#This Row],[תאריך]]))","v":""},{"$f":"IF(טבלה147[[#This Row],[תאריך]]=\"\",\"\",_xlfn.ISOWEEKNUM(טבלה147[[#This Row],[תאריך]]))","v":""},null,"משנה",50,{"$f":"IF(SUMIFS(טבלה147[סה''''כ],טבלה147[העבודה שלי],טבלה48[[#This Row],[העבודות שלי]])<0.0001,\"\",SUMIFS(טבלה147[סה''''כ],טבלה147[העבודה שלי],טבלה48[[#This Row],[העבודות שלי]]))","v":""},{"$f":"IFERROR(טבלה48[[#This Row],[סך שעות עבודה]]*טבלה48[[#This Row],[שכר לשעה]]*24,\"\")","v":""},null,{"$f":"SUMIFS(טבלה147[סה''''כ],טבלה147[העבודה שלי],טבלה48[[#This Row],[העבודות שלי]],טבלה147[תאריך],$R$13)","v":"00:00:00"},{"$f":"SUMIFS(טבלה147[סה''''כ],טבלה147[העבודה שלי],טבלה48[[#This Row],[העבודות שלי]],טבלה147[שבוע],$R$15)","v":0},{"$f":"SUMIFS(טבלה147[סה''''כ],טבלה147[העבודה שלי],טבלה48[[#This Row],[העבודות שלי]],טבלה147[חודש],$R$17)","v":0},null,"***"]
[null,null,{"$f":"IF(טבלה147[[#This Row],[סיום]]=\"\",\"\",טבלה147[[#This Row],[סיום]]-טבלה147[[#This Row],[התחלה]]+(טבלה147[[#This Row],[סיום]]<טבלה147[[#This Row],[התחלה]]))","v":""},null,null,{"$f":"IF(טבלה147[[#This Row],[תאריך]]=\"\",\"\",MONTH(טבלה147[[#This Row],[תאריך]]))","v":""},{"$f":"IF(טבלה147[[#This Row],[תאריך]]=\"\",\"\",_xlfn.ISOWEEKNUM(טבלה147[[#This Row],[תאריך]]))","v":""},null,null,null,{"$f":"IF(SUMIFS(טבלה147[סה''''כ],טבלה147[העבודה שלי],טבלה48[[#This Row],[העבודות שלי]])<0.0001,\"\",SUMIFS(טבלה147[סה''''כ],טבלה147[העבודה שלי],טבלה48[[#This Row],[העבודות שלי]]))","v":""},{"$f":"IFERROR(טבלה48[[#This Row],[סך שעות עבודה]]*טבלה48[[#This Row],[שכר לשעה]]*24,\"\")","v":""},null,{"$f":"SUMIFS(טבלה147[סה''''כ],טבלה147[העבודה שלי],טבלה48[[#This Row],[העבודות שלי]],טבלה147[תאריך],$R$13)","v":"00:00:00"},{"$f":"SUMIFS(טבלה147[סה''''כ],טבלה147[העבודה שלי],טבלה48[[#This Row],[העבודות שלי]],טבלה147[שבוע],$R$15)","v":0},{"$f":"SUMIFS(טבלה147[סה''''כ],טבלה147[העבודה שלי],טבלה48[[#This Row],[העבודות שלי]],טבלה147[חודש],$R$17)","v":0},null,null,null,"פילוח נתוני שכר"]
[null,null,{"$f":"IF(טבלה147[[#This Row],[סיום]]=\"\",\"\",טבלה147[[#This Row],[סיום]]-טבלה147[[#This Row],[התחלה]]+(טבלה147[[#This Row],[סיום]]<טבלה147[[#This Row],[התחלה]]))","v":""},null,null,{"$f":"IF(טבלה147[[#This Row],[תאריך]]=\"\",\"\",MONTH(טבלה147[[#This Row],[תאריך]]))","v":""},{"$f":"IF(טבלה147[[#This Row],[תאריך]]=\"\",\"\",_xlfn.ISOWEEKNUM(טבלה147[[#This Row],[תאריך]]))","v":""},null,null,null,{"$f":"IF(SUMIFS(טבלה147[סה''''כ],טבלה147[העבודה שלי],טבלה48[[#This Row],[העבודות שלי]])<0.0001,\"\",SUMIFS(טבלה147[סה''''כ],טבלה147[העבודה שלי],טבלה48[[#This Row],[העבודות שלי]]))","v":""},{"$f":"IFERROR(טבלה48[[#This Row],[סך שעות עבודה]]*טבלה48[[#This Row],[שכר לשעה]]*24,\"\")","v":""},null,{"$f":"SUMIFS(טבלה147[סה''''כ],טבלה147[העבודה שלי],טבלה48[[#This Row],[העבודות שלי]],טבלה147[תאריך],$R$13)","v":"00:00:00"},{"$f":"SUMIFS(טבלה147[סה''''כ],טבלה147[העבודה שלי],טבלה48[[#This Row],[העבודות שלי]],טבלה147[שבוע],$R$15)","v":0},{"$f":"SUMIFS(טבלה147[סה''''כ],טבלה147[העבודה שלי],טבלה48[[#This Row],[העבודות שלי]],טבלה147[חודש],$R$17)","v":0},null,"היום יום",null,"שכר היום",{"$f":"SUM(טבלה48[עבודה היום]*טבלה48[שכר לשעה]*24)","v":0}]
[null,null,{"$f":"IF(טבלה147[[#This Row],[סיום]]=\"\",\"\",טבלה147[[#This Row],[סיום]]-טבלה147[[#This Row],[התחלה]]+(טבלה147[[#This Row],[סיום]]<טבלה147[[#This Row],[התחלה]]))","v":""},null,null,{"$f":"IF(טבלה147[[#This Row],[תאריך]]=\"\",\"\",MONTH(טבלה147[[#This Row],[תאריך]]))","v":""},{"$f":"IF(טבלה147[[#This Row],[תאריך]]=\"\",\"\",_xlfn.ISOWEEKNUM(טבלה147[[#This Row],[תאריך]]))","v":""},null,null,null,{"$f":"IF(SUMIFS(טבלה147[סה''''כ],טבלה147[העבודה שלי],טבלה48[[#This Row],[העבודות שלי]])<0.0001,\"\",SUMIFS(טבלה147[סה''''כ],טבלה147[העבודה שלי],טבלה48[[#This Row],[העבודות שלי]]))","v":""},{"$f":"IFERROR(טבלה48[[#This Row],[סך שעות עבודה]]*טבלה48[[#This Row],[שכר לשעה]]*24,\"\")","v":""},null,{"$f":"SUMIFS(טבלה147[סה''''כ],טבלה147[העבודה שלי],טבלה48[[#This Row],[העבודות שלי]],טבלה147[תאריך],$R$13)","v":"00:00:00"},{"$f":"SUMIFS(טבלה147[סה''''כ],טבלה147[העבודה שלי],טבלה48[[#This Row],[העבודות שלי]],טבלה147[שבוע],$R$15)","v":0},{"$f":"SUMIFS(טבלה147[סה''''כ],טבלה147[העבודה שלי],טבלה48[[#This Row],[העבודות שלי]],טבלה147[חודש],$R$17)","v":0},null,{"$f":"TODAY()","v":44803},null,"שכר השבוע",{"$f":"SUM(טבלה48[עבודה השבוע]*טבלה48[שכר לשעה]*24)","v":0}]
[null,null,{"$f":"IF(טבלה147[[#This Row],[סיום]]=\"\",\"\",טבלה147[[#This Row],[סיום]]-טבלה147[[#This Row],[התחלה]]+(טבלה147[[#This Row],[סיום]]<טבלה147[[#This Row],[התחלה]]))","v":""},null,null,{"$f":"IF(טבלה147[[#This Row],[תאריך]]=\"\",\"\",MONTH(טבלה147[[#This Row],[תאריך]]))","v":""},{"$f":"IF(טבלה147[[#This Row],[תאריך]]=\"\",\"\",_xlfn.ISOWEEKNUM(טבלה147[[#This Row],[תאריך]]))","v":""},null,null,null,{"$f":"IF(SUMIFS(טבלה147[סה''''כ],טבלה147[העבודה שלי],טבלה48[[#This Row],[העבודות שלי]])<0.0001,\"\",SUMIFS(טבלה147[סה''''כ],טבלה147[העבודה שלי],טבלה48[[#This Row],[העבודות שלי]]))","v":""},{"$f":"IFERROR(טבלה48[[#This Row],[סך שעות עבודה]]*טבלה48[[#This Row],[שכר לשעה]]*24,\"\")","v":""},null,{"$f":"SUMIFS(טבלה147[סה''''כ],טבלה147[העבודה שלי],טבלה48[[#This Row],[העבודות שלי]],טבלה147[תאריך],$R$13)","v":"00:00:00"},{"$f":"SUMIFS(טבלה147[סה''''כ],טבלה147[העבודה שלי],טבלה48[[#This Row],[העבודות שלי]],טבלה147[שבוע],$R$15)","v":0},{"$f":"SUMIFS(טבלה147[סה''''כ],טבלה147[העבודה שלי],טבלה48[[#This Row],[העבודות שלי]],טבלה147[חודש],$R$17)","v":0},null,"מס' שבוע:",null,"שכר מתחילת חודש לועזי",{"$f":"SUM(טבלה48[עבודה החודש]*טבלה48[שכר לשעה]*24)","v":0}]
[null,null,{"$f":"IF(טבלה147[[#This Row],[סיום]]=\"\",\"\",טבלה147[[#This Row],[סיום]]-טבלה147[[#This Row],[התחלה]]+(טבלה147[[#This Row],[סיום]]<טבלה147[[#This Row],[התחלה]]))","v":""},null,null,{"$f":"IF(טבלה147[[#This Row],[תאריך]]=\"\",\"\",MONTH(טבלה147[[#This Row],[תאריך]]))","v":""},{"$f":"IF(טבלה147[[#This Row],[תאריך]]=\"\",\"\",_xlfn.ISOWEEKNUM(טבלה147[[#This Row],[תאריך]]))","v":""},null,null,null,{"$f":"IF(SUMIFS(טבלה147[סה''''כ],טבלה147[העבודה שלי],טבלה48[[#This Row],[העבודות שלי]])<0.0001,\"\",SUMIFS(טבלה147[סה''''כ],טבלה147[העבודה שלי],טבלה48[[#This Row],[העבודות שלי]]))","v":""},{"$f":"IFERROR(טבלה48[[#This Row],[סך שעות עבודה]]*טבלה48[[#This Row],[שכר לשעה]]*24,\"\")","v":""},null,{"$f":"SUMIFS(טבלה147[סה''''כ],טבלה147[העבודה שלי],טבלה48[[#This Row],[העבודות שלי]],טבלה147[תאריך],$R$13)","v":"00:00:00"},{"$f":"SUMIFS(טבלה147[סה''''כ],טבלה147[העבודה שלי],טבלה48[[#This Row],[העבודות שלי]],טבלה147[שבוע],$R$15)","v":0},{"$f":"SUMIFS(טבלה147[סה''''כ],טבלה147[העבודה שלי],טבלה48[[#This Row],[העבודות שלי]],טבלה147[חודש],$R$17)","v":0},null,{"$f":"_xlfn.ISOWEEKNUM(R13)","v":35},null,"שכר בגליון זה",{"$f":"K3","v":0}]
[null,null,{"$f":"IF(טבלה147[[#This Row],[סיום]]=\"\",\"\",טבלה147[[#This Row],[סיום]]-טבלה147[[#This Row],[התחלה]]+(טבלה147[[#This Row],[סיום]]<טבלה147[[#This Row],[התחלה]]))","v":""},null,null,{"$f":"IF(טבלה147[[#This Row],[תאריך]]=\"\",\"\",MONTH(טבלה147[[#This Row],[תאריך]]))","v":""},{"$f":"IF(טבלה147[[#This Row],[תאריך]]=\"\",\"\",_xlfn.ISOWEEKNUM(טבלה147[[#This Row],[תאריך]]))","v":""},null,null,null,{"$f":"IF(SUMIFS(טבלה147[סה''''כ],טבלה147[העבודה שלי],טבלה48[[#This Row],[העבודות שלי]])<0.0001,\"\",SUMIFS(טבלה147[סה''''כ],טבלה147[העבודה שלי],טבלה48[[#This Row],[העבודות שלי]]))","v":""},{"$f":"IFERROR(טבלה48[[#This Row],[סך שעות עבודה]]*טבלה48[[#This Row],[שכר לשעה]]*24,\"\")","v":""},null,{"$f":"SUMIFS(טבלה147[סה''''כ],טבלה147[העבודה שלי],טבלה48[[#This Row],[העבודות שלי]],טבלה147[תאריך],$R$13)","v":"00:00:00"},{"$f":"SUMIFS(טבלה147[סה''''כ],טבלה147[העבודה שלי],טבלה48[[#This Row],[העבודות שלי]],טבלה147[שבוע],$R$15)","v":0},{"$f":"SUMIFS(טבלה147[סה''''כ],טבלה147[העבודה שלי],טבלה48[[#This Row],[העבודות שלי]],טבלה147[חודש],$R$17)","v":0},null,"מס' חודש"]
[null,null,{"$f":"IF(טבלה147[[#This Row],[סיום]]=\"\",\"\",טבלה147[[#This Row],[סיום]]-טבלה147[[#This Row],[התחלה]]+(טבלה147[[#This Row],[סיום]]<טבלה147[[#This Row],[התחלה]]))","v":""},null,null,{"$f":"IF(טבלה147[[#This Row],[תאריך]]=\"\",\"\",MONTH(טבלה147[[#This Row],[תאריך]]))","v":""},{"$f":"IF(טבלה147[[#This Row],[תאריך]]=\"\",\"\",_xlfn.ISOWEEKNUM(טבלה147[[#This Row],[תאריך]]))","v":""},null,null,null,null,null,null,{"$f":"SUMIFS(טבלה147[סה''''כ],טבלה147[העבודה שלי],טבלה48[[#This Row],[העבודות שלי]],טבלה147[תאריך],$R$13)","v":"00:00:00"},{"$f":"SUMIFS(טבלה147[סה''''כ],טבלה147[העבודה שלי],טבלה48[[#This Row],[העבודות שלי]],טבלה147[שבוע],$R$15)","v":0},{"$f":"SUMIFS(טבלה147[סה''''כ],טבלה147[העבודה שלי],טבלה48[[#This Row],[העבודות שלי]],טבלה147[חודש],$R$17)","v":0},null,{"$f":"MONTH(R13)","v":8},null,"היעדים שלי"]
[null,null,{"$f":"IF(טבלה147[[#This Row],[סיום]]=\"\",\"\",טבלה147[[#This Row],[סיום]]-טבלה147[[#This Row],[התחלה]]+(טבלה147[[#This Row],[סיום]]<טבלה147[[#This Row],[התחלה]]))","v":""},null,null,{"$f":"IF(טבלה147[[#This Row],[תאריך]]=\"\",\"\",MONTH(טבלה147[[#This Row],[תאריך]]))","v":""},{"$f":"IF(טבלה147[[#This Row],[תאריך]]=\"\",\"\",_xlfn.ISOWEEKNUM(טבלה147[[#This Row],[תאריך]]))","v":""},null,null,null,null,null,null,{"$f":"SUMIFS(טבלה147[סה''''כ],טבלה147[העבודה שלי],טבלה48[[#This Row],[העבודות שלי]],טבלה147[תאריך],$R$13)","v":"00:00:00"},{"$f":"SUMIFS(טבלה147[סה''''כ],טבלה147[העבודה שלי],טבלה48[[#This Row],[העבודות שלי]],טבלה147[שבוע],$R$15)","v":0},{"$f":"SUMIFS(טבלה147[סה''''כ],טבלה147[העבודה שלי],טבלה48[[#This Row],[העבודות שלי]],טבלה147[חודש],$R$17)","v":0},null,null,null,"כמה שעות לעבוד היום","01:00:00"]
[null,null,{"$f":"IF(טבלה147[[#This Row],[סיום]]=\"\",\"\",טבלה147[[#This Row],[סיום]]-טבלה147[[#This Row],[התחלה]]+(טבלה147[[#This Row],[סיום]]<טבלה147[[#This Row],[התחלה]]))","v":""},null,null,{"$f":"IF(טבלה147[[#This Row],[תאריך]]=\"\",\"\",MONTH(טבלה147[[#This Row],[תאריך]]))","v":""},{"$f":"IF(טבלה147[[#This Row],[תאריך]]=\"\",\"\",_xlfn.ISOWEEKNUM(טבלה147[[#This Row],[תאריך]]))","v":""},null,null,null,null,null,null,{"$f":"SUMIFS(טבלה147[סה''''כ],טבלה147[העבודה שלי],טבלה48[[#This Row],[העבודות שלי]],טבלה147[תאריך],$R$13)","v":"00:00:00"},{"$f":"SUMIFS(טבלה147[סה''''כ],טבלה147[העבודה שלי],טבלה48[[#This Row],[העבודות שלי]],טבלה147[שבוע],$R$15)","v":0},{"$f":"SUMIFS(טבלה147[סה''''כ],טבלה147[העבודה שלי],טבלה48[[#This Row],[העבודות שלי]],טבלה147[חודש],$R$17)","v":0},null,"**",null,"כמה שעות לעבוד השבוע"]
[null,null,{"$f":"IF(טבלה147[[#This Row],[סיום]]=\"\",\"\",טבלה147[[#This Row],[סיום]]-טבלה147[[#This Row],[התחלה]]+(טבלה147[[#This Row],[סיום]]<טבלה147[[#This Row],[התחלה]]))","v":""},null,null,{"$f":"IF(טבלה147[[#This Row],[תאריך]]=\"\",\"\",MONTH(טבלה147[[#This Row],[תאריך]]))","v":""},{"$f":"IF(טבלה147[[#This Row],[תאריך]]=\"\",\"\",_xlfn.ISOWEEKNUM(טבלה147[[#This Row],[תאריך]]))","v":""},null,null,null,null,null,null,{"$f":"SUMIFS(טבלה147[סה''''כ],טבלה147[העבודה שלי],טבלה48[[#This Row],[העבודות שלי]],טבלה147[תאריך],$R$13)","v":"00:00:00"},{"$f":"SUMIFS(טבלה147[סה''''כ],טבלה147[העבודה שלי],טבלה48[[#This Row],[העבודות שלי]],טבלה147[שבוע],$R$15)","v":0},{"$f":"SUMIFS(טבלה147[סה''''כ],טבלה147[העבודה שלי],טבלה48[[#This Row],[העבודות שלי]],טבלה147[חודש],$R$17)","v":0},null,null,null,"כמה שעות לעבוד החודש"]
[null,null,{"$f":"IF(טבלה147[[#This Row],[סיום]]=\"\",\"\",טבלה147[[#This Row],[סיום]]-טבלה147[[#This Row],[התחלה]]+(טבלה147[[#This Row],[סיום]]<טבלה147[[#This Row],[התחלה]]))","v":""},null,null,{"$f":"IF(טבלה147[[#This Row],[תאריך]]=\"\",\"\",MONTH(טבלה147[[#This Row],[תאריך]]))","v":""},{"$f":"IF(טבלה147[[#This Row],[תאריך]]=\"\",\"\",_xlfn.ISOWEEKNUM(טבלה147[[#This Row],[תאריך]]))","v":""},null,null,null,null,null,null,{"$f":"SUMIFS(טבלה147[סה''''כ],טבלה147[העבודה שלי],טבלה48[[#This Row],[העבודות שלי]],טבלה147[תאריך],$R$13)","v":"00:00:00"},{"$f":"SUMIFS(טבלה147[סה''''כ],טבלה147[העבודה שלי],טבלה48[[#This Row],[העבודות שלי]],טבלה147[שבוע],$R$15)","v":0},{"$f":"SUMIFS(טבלה147[סה''''כ],טבלה147[העבודה שלי],טבלה48[[#This Row],[העבודות שלי]],טבלה147[חודש],$R$17)","v":0},null,null,null,"כמה שעות בגליון זה"]
[null,null,{"$f":"IF(טבלה147[[#This Row],[סיום]]=\"\",\"\",טבלה147[[#This Row],[סיום]]-טבלה147[[#This Row],[התחלה]]+(טבלה147[[#This Row],[סיום]]<טבלה147[[#This Row],[התחלה]]))","v":""},null,null,{"$f":"IF(טבלה147[[#This Row],[תאריך]]=\"\",\"\",MONTH(טבלה147[[#This Row],[תאריך]]))","v":""},{"$f":"IF(טבלה147[[#This Row],[תאריך]]=\"\",\"\",_xlfn.ISOWEEKNUM(טבלה147[[#This Row],[תאריך]]))","v":""},null,null,null,null,null,null,{"$f":"SUMIFS(טבלה147[סה''''כ],טבלה147[העבודה שלי],טבלה48[[#This Row],[העבודות שלי]],טבלה147[תאריך],$R$13)","v":"00:00:00"},{"$f":"SUMIFS(טבלה147[סה''''כ],טבלה147[העבודה שלי],טבלה48[[#This Row],[העבודות שלי]],טבלה147[שבוע],$R$15)","v":0},{"$f":"SUMIFS(טבלה147[סה''''כ],טבלה147[העבודה שלי],טבלה48[[#This Row],[העבודות שלי]],טבלה147[חודש],$R$17)","v":0},null,null,null,"הכנסה יומית"]
[null,null,{"$f":"IF(טבלה147[[#This Row],[סיום]]=\"\",\"\",טבלה147[[#This Row],[סיום]]-טבלה147[[#This Row],[התחלה]]+(טבלה147[[#This Row],[סיום]]<טבלה147[[#This Row],[התחלה]]))","v":""},null,null,{"$f":"IF(טבלה147[[#This Row],[תאריך]]=\"\",\"\",MONTH(טבלה147[[#This Row],[תאריך]]))","v":""},{"$f":"IF(טבלה147[[#This Row],[תאריך]]=\"\",\"\",_xlfn.ISOWEEKNUM(טבלה147[[#This Row],[תאריך]]))","v":""},null,null,null,null,null,null,{"$f":"SUMIFS(טבלה147[סה''''כ],טבלה147[העבודה שלי],טבלה48[[#This Row],[העבודות שלי]],טבלה147[תאריך],$R$13)","v":"00:00:00"},{"$f":"SUMIFS(טבלה147[סה''''כ],טבלה147[העבודה שלי],טבלה48[[#This Row],[העבודות שלי]],טבלה147[שבוע],$R$15)","v":0},{"$f":"SUMIFS(טבלה147[סה''''כ],טבלה147[העבודה שלי],טבלה48[[#This Row],[העבודות שלי]],טבלה147[חודש],$R$17)","v":0},null,null,null,"הכנסה שבועית"]
[null,null,{"$f":"IF(טבלה147[[#This Row],[סיום]]=\"\",\"\",טבלה147[[#This Row],[סיום]]-טבלה147[[#This Row],[התחלה]]+(טבלה147[[#This Row],[סיום]]<טבלה147[[#This Row],[התחלה]]))","v":""},null,null,{"$f":"IF(טבלה147[[#This Row],[תאריך]]=\"\",\"\",MONTH(טבלה147[[#This Row],[תאריך]]))","v":""},{"$f":"IF(טבלה147[[#This Row],[תאריך]]=\"\",\"\",_xlfn.ISOWEEKNUM(טבלה147[[#This Row],[תאריך]]))","v":""},null,null,null,null,null,null,{"$f":"SUMIFS(טבלה147[סה''''כ],טבלה147[העבודה שלי],טבלה48[[#This Row],[העבודות שלי]],טבלה147[תאריך],$R$13)","v":"00:00:00"},{"$f":"SUMIFS(טבלה147[סה''''כ],טבלה147[העבודה שלי],טבלה48[[#This Row],[העבודות שלי]],טבלה147[שבוע],$R$15)","v":0},{"$f":"SUMIFS(טבלה147[סה''''כ],טבלה147[העבודה שלי],טבלה48[[#This Row],[העבודות שלי]],טבלה147[חודש],$R$17)","v":0},null,null,null,"הכנסה מתחילת החודש"]
[null,null,{"$f":"IF(טבלה147[[#This Row],[סיום]]=\"\",\"\",טבלה147[[#This Row],[סיום]]-טבלה147[[#This Row],[התחלה]]+(טבלה147[[#This Row],[סיום]]<טבלה147[[#This Row],[התחלה]]))","v":""},null,null,{"$f":"IF(טבלה147[[#This Row],[תאריך]]=\"\",\"\",MONTH(טבלה147[[#This Row],[תאריך]]))","v":""},{"$f":"IF(טבלה147[[#This Row],[תאריך]]=\"\",\"\",_xlfn.ISOWEEKNUM(טבלה147[[#This Row],[תאריך]]))","v":""},null,null,null,null,null,null,{"$f":"SUMIFS(טבלה147[סה''''כ],טבלה147[העבודה שלי],טבלה48[[#This Row],[העבודות שלי]],טבלה147[תאריך],$R$13)","v":"00:00:00"},{"$f":"SUMIFS(טבלה147[סה''''כ],טבלה147[העבודה שלי],טבלה48[[#This Row],[העבודות שלי]],טבלה147[שבוע],$R$15)","v":0},{"$f":"SUMIFS(טבלה147[סה''''כ],טבלה147[העבודה שלי],טבלה48[[#This Row],[העבודות שלי]],טבלה147[חודש],$R$17)","v":0},null,null,null,"הכנסה בגליון זה"]
[null,null,{"$f":"IF(טבלה147[[#This Row],[סיום]]=\"\",\"\",טבלה147[[#This Row],[סיום]]-טבלה147[[#This Row],[התחלה]]+(טבלה147[[#This Row],[סיום]]<טבלה147[[#This Row],[התחלה]]))","v":""},null,null,{"$f":"IF(טבלה147[[#This Row],[תאריך]]=\"\",\"\",MONTH(טבלה147[[#This Row],[תאריך]]))","v":""},{"$f":"IF(טבלה147[[#This Row],[תאריך]]=\"\",\"\",_xlfn.ISOWEEKNUM(טבלה147[[#This Row],[תאריך]]))","v":""},null,null,null,null,null,null,{"$f":"SUMIFS(טבלה147[סה''''כ],טבלה147[העבודה שלי],טבלה48[[#This Row],[העבודות שלי]],טבלה147[תאריך],$R$13)","v":"00:00:00"},{"$f":"SUMIFS(טבלה147[סה''''כ],טבלה147[העבודה שלי],טבלה48[[#This Row],[העבודות שלי]],טבלה147[שבוע],$R$15)","v":0},{"$f":"SUMIFS(טבלה147[סה''''כ],טבלה147[העבודה שלי],טבלה48[[#This Row],[העבודות שלי]],טבלה147[חודש],$R$17)","v":0}]
[null,null,{"$f":"IF(טבלה147[[#This Row],[סיום]]=\"\",\"\",טבלה147[[#This Row],[סיום]]-טבלה147[[#This Row],[התחלה]]+(טבלה147[[#This Row],[סיום]]<טבלה147[[#This Row],[התחלה]]))","v":""},null,null,{"$f":"IF(טבלה147[[#This Row],[תאריך]]=\"\",\"\",MONTH(טבלה147[[#This Row],[תאריך]]))","v":""},{"$f":"IF(טבלה147[[#This Row],[תאריך]]=\"\",\"\",_xlfn.ISOWEEKNUM(טבלה147[[#This Row],[תאריך]]))","v":""},null,null,null,null,null,null,null,null,null,null,"ע",".","עמידה ביעדים","עמודה1"]
[null,null,{"$f":"IF(טבלה147[[#This Row],[סיום]]=\"\",\"\",טבלה147[[#This Row],[סיום]]-טבלה147[[#This Row],[התחלה]]+(טבלה147[[#This Row],[סיום]]<טבלה147[[#This Row],[התחלה]]))","v":""},null,null,{"$f":"IF(טבלה147[[#This Row],[תאריך]]=\"\",\"\",MONTH(טבלה147[[#This Row],[תאריך]]))","v":""},{"$f":"IF(טבלה147[[#This Row],[תאריך]]=\"\",\"\",_xlfn.ISOWEEKNUM(טבלה147[[#This Row],[תאריך]]))","v":""},null,null,null,null,null,null,null,null,null,"א. ",{"$f":"Q28&טבלה8[[#This Row],[עמידה ביעדים]]","v":"א. כמה שעות לעבוד היום"},null,"כמה שעות לעבוד היום",{"$f":"IFERROR(U6/U18,\"\")","v":0}]
[null,null,{"$f":"IF(טבלה147[[#This Row],[סיום]]=\"\",\"\",טבלה147[[#This Row],[סיום]]-טבלה147[[#This Row],[התחלה]]+(טבלה147[[#This Row],[סיום]]<טבלה147[[#This Row],[התחלה]]))","v":""},null,null,{"$f":"IF(טבלה147[[#This Row],[תאריך]]=\"\",\"\",MONTH(טבלה147[[#This Row],[תאריך]]))","v":""},{"$f":"IF(טבלה147[[#This Row],[תאריך]]=\"\",\"\",_xlfn.ISOWEEKNUM(טבלה147[[#This Row],[תאריך]]))","v":""},null,null,null,null,null,null,null,null,null,"ב. ",{"$f":"Q29&טבלה8[[#This Row],[עמידה ביעדים]]","v":"ב. כמה שעות לעבוד השבוע"},null,"כמה שעות לעבוד השבוע",{"$f":"IFERROR(U7/U19,\"\")","v":""}]
[null,null,{"$f":"IF(טבלה147[[#This Row],[סיום]]=\"\",\"\",טבלה147[[#This Row],[סיום]]-טבלה147[[#This Row],[התחלה]]+(טבלה147[[#This Row],[סיום]]<טבלה147[[#This Row],[התחלה]]))","v":""},null,null,{"$f":"IF(טבלה147[[#This Row],[תאריך]]=\"\",\"\",MONTH(טבלה147[[#This Row],[תאריך]]))","v":""},{"$f":"IF(טבלה147[[#This Row],[תאריך]]=\"\",\"\",_xlfn.ISOWEEKNUM(טבלה147[[#This Row],[תאריך]]))","v":""},null,null,null,null,null,null,null,null,null,"ג. ",{"$f":"Q30&טבלה8[[#This Row],[עמידה ביעדים]]","v":"ג. כמה שעות לעבוד החודש"},null,"כמה שעות לעבוד החודש",{"$f":"IFERROR(U8/U20,\"\")","v":""}]
[null,null,{"$f":"IF(טבלה147[[#This Row],[סיום]]=\"\",\"\",טבלה147[[#This Row],[סיום]]-טבלה147[[#This Row],[התחלה]]+(טבלה147[[#This Row],[סיום]]<טבלה147[[#This Row],[התחלה]]))","v":""},null,null,{"$f":"IF(טבלה147[[#This Row],[תאריך]]=\"\",\"\",MONTH(טבלה147[[#This Row],[תאריך]]))","v":""},{"$f":"IF(טבלה147[[#This Row],[תאריך]]=\"\",\"\",_xlfn.ISOWEEKNUM(טבלה147[[#This Row],[תאריך]]))","v":""},null,null,null,null,null,null,null,null,null,"ד. ",{"$f":"Q31&טבלה8[[#This Row],[עמידה ביעדים]]","v":"ד. כמה שעות בגליון זה"},null,"כמה שעות בגליון זה",""]
[null,null,{"$f":"IF(טבלה147[[#This Row],[סיום]]=\"\",\"\",טבלה147[[#This Row],[סיום]]-טבלה147[[#This Row],[התחלה]]+(טבלה147[[#This Row],[סיום]]<טבלה147[[#This Row],[התחלה]]))","v":""},null,null,{"$f":"IF(טבלה147[[#This Row],[תאריך]]=\"\",\"\",MONTH(טבלה147[[#This Row],[תאריך]]))","v":""},{"$f":"IF(טבלה147[[#This Row],[תאריך]]=\"\",\"\",_xlfn.ISOWEEKNUM(טבלה147[[#This Row],[תאריך]]))","v":""},null,null,null,null,null,null,null,null,null,"ה. ",{"$f":"Q32&טבלה8[[#This Row],[עמידה ביעדים]]","v":"ה. הכנסה יומית"},null,"הכנסה יומית",{"$f":"IFERROR(U12/U22,\"\")","v":""}]
[null,null,{"$f":"IF(טבלה147[[#This Row],[סיום]]=\"\",\"\",טבלה147[[#This Row],[סיום]]-טבלה147[[#This Row],[התחלה]]+(טבלה147[[#This Row],[סיום]]<טבלה147[[#This Row],[התחלה]]))","v":""},null,null,{"$f":"IF(טבלה147[[#This Row],[תאריך]]=\"\",\"\",MONTH(טבלה147[[#This Row],[תאריך]]))","v":""},{"$f":"IF(טבלה147[[#This Row],[תאריך]]=\"\",\"\",_xlfn.ISOWEEKNUM(טבלה147[[#This Row],[תאריך]]))","v":""},null,null,null,null,null,null,null,null,null,"ו. ",{"$f":"Q33&טבלה8[[#This Row],[עמידה ביעדים]]","v":"ו. הכנסה שבועית"},null,"הכנסה שבועית",{"$f":"IFERROR(U13/U23,\"\")","v":""}]
[null,null,{"$f":"IF(טבלה147[[#This Row],[סיום]]=\"\",\"\",טבלה147[[#This Row],[סיום]]-טבלה147[[#This Row],[התחלה]]+(טבלה147[[#This Row],[סיום]]<טבלה147[[#This Row],[התחלה]]))","v":""},null,null,{"$f":"IF(טבלה147[[#This Row],[תאריך]]=\"\",\"\",MONTH(טבלה147[[#This Row],[תאריך]]))","v":""},{"$f":"IF(טבלה147[[#This Row],[תאריך]]=\"\",\"\",_xlfn.ISOWEEKNUM(טבלה147[[#This Row],[תאריך]]))","v":""},null,null,null,null,null,null,null,null,null,"ז. ",{"$f":"Q34&טבלה8[[#This Row],[עמידה ביעדים]]","v":"ז. הכנסה מתחילת החודש"},null,"הכנסה מתחילת החודש",""]
[null,null,{"$f":"IF(טבלה147[[#This Row],[סיום]]=\"\",\"\",טבלה147[[#This Row],[סיום]]-טבלה147[[#This Row],[התחלה]]+(טבלה147[[#This Row],[סיום]]<טבלה147[[#This Row],[התחלה]]))","v":""},null,null,{"$f":"IF(טבלה147[[#This Row],[תאריך]]=\"\",\"\",MONTH(טבלה147[[#This Row],[תאריך]]))","v":""},{"$f":"IF(טבלה147[[#This Row],[תאריך]]=\"\",\"\",_xlfn.ISOWEEKNUM(טבלה147[[#This Row],[תאריך]]))","v":""},null,null,null,null,null,null,null,null,null,"ח. ",{"$f":"Q35&טבלה8[[#This Row],[עמידה ביעדים]]","v":"ח. הכנסה בגליון זה"},null,"הכנסה בגליון זה",""]
[null,null,{"$f":"IF(טבלה147[[#This Row],[סיום]]=\"\",\"\",טבלה147[[#This Row],[סיום]]-טבלה147[[#This Row],[התחלה]]+(טבלה147[[#This Row],[סיום]]<טבלה147[[#This Row],[התחלה]]))","v":""},null,null,{"$f":"IF(טבלה147[[#This Row],[תאריך]]=\"\",\"\",MONTH(טבלה147[[#This Row],[תאריך]]))","v":""},{"$f":"IF(טבלה147[[#This Row],[תאריך]]=\"\",\"\",_xlfn.ISOWEEKNUM(טבלה147[[#This Row],[תאריך]]))","v":""}]
[null,null,{"$f":"IF(טבלה147[[#This Row],[סיום]]=\"\",\"\",טבלה147[[#This Row],[סיום]]-טבלה147[[#This Row],[התחלה]]+(טבלה147[[#This Row],[סיום]]<טבלה147[[#This Row],[התחלה]]))","v":""},null,null,{"$f":"IF(טבלה147[[#This Row],[תאריך]]=\"\",\"\",MONTH(טבלה147[[#This Row],[תאריך]]))","v":""},{"$f":"IF(טבלה147[[#This Row],[תאריך]]=\"\",\"\",_xlfn.ISOWEEKNUM(טבלה147[[#This Row],[תאריך]]))","v":""}]
[null,null,{"$f":"IF(טבלה147[[#This Row],[סיום]]=\"\",\"\",טבלה147[[#This Row],[סיום]]-טבלה147[[#This Row],[התחלה]]+(טבלה147[[#This Row],[סיום]]<טבלה147[[#This Row],[התחלה]]))","v":""},null,null,{"$f":"IF(טבלה147[[#This Row],[תאריך]]=\"\",\"\",MONTH(טבלה147[[#This Row],[תאריך]]))","v":""},{"$f":"IF(טבלה147[[#This Row],[תאריך]]=\"\",\"\",_xlfn.ISOWEEKNUM(טבלה147[[#This Row],[תאריך]]))","v":""}]
[null,null,{"$f":"IF(טבלה147[[#This Row],[סיום]]=\"\",\"\",טבלה147[[#This Row],[סיום]]-טבלה147[[#This Row],[התחלה]]+(טבלה147[[#This Row],[סיום]]<טבלה147[[#This Row],[התחלה]]))","v":""},null,null,{"$f":"IF(טבלה147[[#This Row],[תאריך]]=\"\",\"\",MONTH(טבלה147[[#This Row],[תאריך]]))","v":""},{"$f":"IF(טבלה147[[#This Row],[תאריך]]=\"\",\"\",_xlfn.ISOWEEKNUM(טבלה147[[#This Row],[תאריך]]))","v":""}]
[null,null,{"$f":"IF(טבלה147[[#This Row],[סיום]]=\"\",\"\",טבלה147[[#This Row],[סיום]]-טבלה147[[#This Row],[התחלה]]+(טבלה147[[#This Row],[סיום]]<טבלה147[[#This Row],[התחלה]]))","v":""},null,null,{"$f":"IF(טבלה147[[#This Row],[תאריך]]=\"\",\"\",MONTH(טבלה147[[#This Row],[תאריך]]))","v":""},{"$f":"IF(טבלה147[[#This Row],[תאריך]]=\"\",\"\",_xlfn.ISOWEEKNUM(טבלה147[[#This Row],[תאריך]]))","v":""}]
[null,null,{"$f":"IF(טבלה147[[#This Row],[סיום]]=\"\",\"\",טבלה147[[#This Row],[סיום]]-טבלה147[[#This Row],[התחלה]]+(טבלה147[[#This Row],[סיום]]<טבלה147[[#This Row],[התחלה]]))","v":""},null,null,{"$f":"IF(טבלה147[[#This Row],[תאריך]]=\"\",\"\",MONTH(טבלה147[[#This Row],[תאריך]]))","v":""},{"$f":"IF(טבלה147[[#This Row],[תאריך]]=\"\",\"\",_xlfn.ISOWEEKNUM(טבלה147[[#This Row],[תאריך]]))","v":""}]
[null,null,{"$f":"IF(טבלה147[[#This Row],[סיום]]=\"\",\"\",טבלה147[[#This Row],[סיום]]-טבלה147[[#This Row],[התחלה]]+(טבלה147[[#This Row],[סיום]]<טבלה147[[#This Row],[התחלה]]))","v":""},null,null,{"$f":"IF(טבלה147[[#This Row],[תאריך]]=\"\",\"\",MONTH(טבלה147[[#This Row],[תאריך]]))","v":""},{"$f":"IF(טבלה147[[#This Row],[תאריך]]=\"\",\"\",_xlfn.ISOWEEKNUM(טבלה147[[#This Row],[תאריך]]))","v":""}]
[null,null,{"$f":"IF(טבלה147[[#This Row],[סיום]]=\"\",\"\",טבלה147[[#This Row],[סיום]]-טבלה147[[#This Row],[התחלה]]+(טבלה147[[#This Row],[סיום]]<טבלה147[[#This Row],[התחלה]]))","v":""},null,null,{"$f":"IF(טבלה147[[#This Row],[תאריך]]=\"\",\"\",MONTH(טבלה147[[#This Row],[תאריך]]))","v":""},{"$f":"IF(טבלה147[[#This Row],[תאריך]]=\"\",\"\",_xlfn.ISOWEEKNUM(טבלה147[[#This Row],[תאריך]]))","v":""}]
[null,null,{"$f":"IF(טבלה147[[#This Row],[סיום]]=\"\",\"\",טבלה147[[#This Row],[סיום]]-טבלה147[[#This Row],[התחלה]]+(טבלה147[[#This Row],[סיום]]<טבלה147[[#This Row],[התחלה]]))","v":""},null,null,{"$f":"IF(טבלה147[[#This Row],[תאריך]]=\"\",\"\",MONTH(טבלה147[[#This Row],[תאריך]]))","v":""},{"$f":"IF(טבלה147[[#This Row],[תאריך]]=\"\",\"\",_xlfn.ISOWEEKNUM(טבלה147[[#This Row],[תאריך]]))","v":""}]
[null,null,{"$f":"IF(טבלה147[[#This Row],[סיום]]=\"\",\"\",טבלה147[[#This Row],[סיום]]-טבלה147[[#This Row],[התחלה]]+(טבלה147[[#This Row],[סיום]]<טבלה147[[#This Row],[התחלה]]))","v":""},null,null,{"$f":"IF(טבלה147[[#This Row],[תאריך]]=\"\",\"\",MONTH(טבלה147[[#This Row],[תאריך]]))","v":""},{"$f":"IF(טבלה147[[#This Row],[תאריך]]=\"\",\"\",_xlfn.ISOWEEKNUM(טבלה147[[#This Row],[תאריך]]))","v":""}]
[null,null,{"$f":"IF(טבלה147[[#This Row],[סיום]]=\"\",\"\",טבלה147[[#This Row],[סיום]]-טבלה147[[#This Row],[התחלה]]+(טבלה147[[#This Row],[סיום]]<טבלה147[[#This Row],[התחלה]]))","v":""},null,null,{"$f":"IF(טבלה147[[#This Row],[תאריך]]=\"\",\"\",MONTH(טבלה147[[#This Row],[תאריך]]))","v":""},{"$f":"IF(טבלה147[[#This Row],[תאריך]]=\"\",\"\",_xlfn.ISOWEEKNUM(טבלה147[[#This Row],[תאריך]]))","v":""}]
[null,null,{"$f":"IF(טבלה147[[#This Row],[סיום]]=\"\",\"\",טבלה147[[#This Row],[סיום]]-טבלה147[[#This Row],[התחלה]]+(טבלה147[[#This Row],[סיום]]<טבלה147[[#This Row],[התחלה]]))","v":""},null,null,{"$f":"IF(טבלה147[[#This Row],[תאריך]]=\"\",\"\",MONTH(טבלה147[[#This Row],[תאריך]]))","v":""},{"$f":"IF(טבלה147[[#This Row],[תאריך]]=\"\",\"\",_xlfn.ISOWEEKNUM(טבלה147[[#This Row],[תאריך]]))","v":""}]
[null,null,{"$f":"IF(טבלה147[[#This Row],[סיום]]=\"\",\"\",טבלה147[[#This Row],[סיום]]-טבלה147[[#This Row],[התחלה]]+(טבלה147[[#This Row],[סיום]]<טבלה147[[#This Row],[התחלה]]))","v":""},null,null,{"$f":"IF(טבלה147[[#This Row],[תאריך]]=\"\",\"\",MONTH(טבלה147[[#This Row],[תאריך]]))","v":""},{"$f":"IF(טבלה147[[#This Row],[תאריך]]=\"\",\"\",_xlfn.ISOWEEKNUM(טבלה147[[#This Row],[תאריך]]))","v":""}]
[null,null,{"$f":"IF(טבלה147[[#This Row],[סיום]]=\"\",\"\",טבלה147[[#This Row],[סיום]]-טבלה147[[#This Row],[התחלה]]+(טבלה147[[#This Row],[סיום]]<טבלה147[[#This Row],[התחלה]]))","v":""},null,null,{"$f":"IF(טבלה147[[#This Row],[תאריך]]=\"\",\"\",MONTH(טבלה147[[#This Row],[תאריך]]))","v":""},{"$f":"IF(טבלה147[[#This Row],[תאריך]]=\"\",\"\",_xlfn.ISOWEEKNUM(טבלה147[[#This Row],[תאריך]]))","v":""}]
[null,null,{"$f":"IF(טבלה147[[#This Row],[סיום]]=\"\",\"\",טבלה147[[#This Row],[סיום]]-טבלה147[[#This Row],[התחלה]]+(טבלה147[[#This Row],[סיום]]<טבלה147[[#This Row],[התחלה]]))","v":""},null,null,{"$f":"IF(טבלה147[[#This Row],[תאריך]]=\"\",\"\",MONTH(טבלה147[[#This Row],[תאריך]]))","v":""},{"$f":"IF(טבלה147[[#This Row],[תאריך]]=\"\",\"\",_xlfn.ISOWEEKNUM(טבלה147[[#This Row],[תאריך]]))","v":""}]
[null,null,{"$f":"IF(טבלה147[[#This Row],[סיום]]=\"\",\"\",טבלה147[[#This Row],[סיום]]-טבלה147[[#This Row],[התחלה]]+(טבלה147[[#This Row],[סיום]]<טבלה147[[#This Row],[התחלה]]))","v":""},null,null,{"$f":"IF(טבלה147[[#This Row],[תאריך]]=\"\",\"\",MONTH(טבלה147[[#This Row],[תאריך]]))","v":""},{"$f":"IF(טבלה147[[#This Row],[תאריך]]=\"\",\"\",_xlfn.ISOWEEKNUM(טבלה147[[#This Row],[תאריך]]))","v":""}]
[null,null,{"$f":"IF(טבלה147[[#This Row],[סיום]]=\"\",\"\",טבלה147[[#This Row],[סיום]]-טבלה147[[#This Row],[התחלה]]+(טבלה147[[#This Row],[סיום]]<טבלה147[[#This Row],[התחלה]]))","v":""},null,null,{"$f":"IF(טבלה147[[#This Row],[תאריך]]=\"\",\"\",MONTH(טבלה147[[#This Row],[תאריך]]))","v":""},{"$f":"IF(טבלה147[[#This Row],[תאריך]]=\"\",\"\",_xlfn.ISOWEEKNUM(טבלה147[[#This Row],[תאריך]]))","v":""}]
[null,null,{"$f":"IF(טבלה147[[#This Row],[סיום]]=\"\",\"\",טבלה147[[#This Row],[סיום]]-טבלה147[[#This Row],[התחלה]]+(טבלה147[[#This Row],[סיום]]<טבלה147[[#This Row],[התחלה]]))","v":""},null,null,{"$f":"IF(טבלה147[[#This Row],[תאריך]]=\"\",\"\",MONTH(טבלה147[[#This Row],[תאריך]]))","v":""},{"$f":"IF(טבלה147[[#This Row],[תאריך]]=\"\",\"\",_xlfn.ISOWEEKNUM(טבלה147[[#This Row],[תאריך]]))","v":""}]
[null,null,{"$f":"IF(טבלה147[[#This Row],[סיום]]=\"\",\"\",טבלה147[[#This Row],[סיום]]-טבלה147[[#This Row],[התחלה]]+(טבלה147[[#This Row],[סיום]]<טבלה147[[#This Row],[התחלה]]))","v":""},null,null,{"$f":"IF(טבלה147[[#This Row],[תאריך]]=\"\",\"\",MONTH(טבלה147[[#This Row],[תאריך]]))","v":""},{"$f":"IF(טבלה147[[#This Row],[תאריך]]=\"\",\"\",_xlfn.ISOWEEKNUM(טבלה147[[#This Row],[תאריך]]))","v":""}]
[null,null,{"$f":"IF(טבלה147[[#This Row],[סיום]]=\"\",\"\",טבלה147[[#This Row],[סיום]]-טבלה147[[#This Row],[התחלה]]+(טבלה147[[#This Row],[סיום]]<טבלה147[[#This Row],[התחלה]]))","v":""},null,null,{"$f":"IF(טבלה147[[#This Row],[תאריך]]=\"\",\"\",MONTH(טבלה147[[#This Row],[תאריך]]))","v":""},{"$f":"IF(טבלה147[[#This Row],[תאריך]]=\"\",\"\",_xlfn.ISOWEEKNUM(טבלה147[[#This Row],[תאריך]]))","v":""}]
[null,null,{"$f":"IF(טבלה147[[#This Row],[סיום]]=\"\",\"\",טבלה147[[#This Row],[סיום]]-טבלה147[[#This Row],[התחלה]]+(טבלה147[[#This Row],[סיום]]<טבלה147[[#This Row],[התחלה]]))","v":""},null,null,{"$f":"IF(טבלה147[[#This Row],[תאריך]]=\"\",\"\",MONTH(טבלה147[[#This Row],[תאריך]]))","v":""},{"$f":"IF(טבלה147[[#This Row],[תאריך]]=\"\",\"\",_xlfn.ISOWEEKNUM(טבלה147[[#This Row],[תאריך]]))","v":""}]
[null,null,{"$f":"IF(טבלה147[[#This Row],[סיום]]=\"\",\"\",טבלה147[[#This Row],[סיום]]-טבלה147[[#This Row],[התחלה]]+(טבלה147[[#This Row],[סיום]]<טבלה147[[#This Row],[התחלה]]))","v":""},null,null,{"$f":"IF(טבלה147[[#This Row],[תאריך]]=\"\",\"\",MONTH(טבלה147[[#This Row],[תאריך]]))","v":""},{"$f":"IF(טבלה147[[#This Row],[תאריך]]=\"\",\"\",_xlfn.ISOWEEKNUM(טבלה147[[#This Row],[תאריך]]))","v":""}]
[null,null,{"$f":"IF(טבלה147[[#This Row],[סיום]]=\"\",\"\",טבלה147[[#This Row],[סיום]]-טבלה147[[#This Row],[התחלה]]+(טבלה147[[#This Row],[סיום]]<טבלה147[[#This Row],[התחלה]]))","v":""},null,null,{"$f":"IF(טבלה147[[#This Row],[תאריך]]=\"\",\"\",MONTH(טבלה147[[#This Row],[תאריך]]))","v":""},{"$f":"IF(טבלה147[[#This Row],[תאריך]]=\"\",\"\",_xlfn.ISOWEEKNUM(טבלה147[[#This Row],[תאריך]]))","v":""}]
[null,null,{"$f":"IF(טבלה147[[#This Row],[סיום]]=\"\",\"\",טבלה147[[#This Row],[סיום]]-טבלה147[[#This Row],[התחלה]]+(טבלה147[[#This Row],[סיום]]<טבלה147[[#This Row],[התחלה]]))","v":""},null,null,{"$f":"IF(טבלה147[[#This Row],[תאריך]]=\"\",\"\",MONTH(טבלה147[[#This Row],[תאריך]]))","v":""},{"$f":"IF(טבלה147[[#This Row],[תאריך]]=\"\",\"\",_xlfn.ISOWEEKNUM(טבלה147[[#This Row],[תאריך]]))","v":""}]
[null,null,{"$f":"IF(טבלה147[[#This Row],[סיום]]=\"\",\"\",טבלה147[[#This Row],[סיום]]-טבלה147[[#This Row],[התחלה]]+(טבלה147[[#This Row],[סיום]]<טבלה147[[#This Row],[התחלה]]))","v":""},null,null,{"$f":"IF(טבלה147[[#This Row],[תאריך]]=\"\",\"\",MONTH(טבלה147[[#This Row],[תאריך]]))","v":""},{"$f":"IF(טבלה147[[#This Row],[תאריך]]=\"\",\"\",_xlfn.ISOWEEKNUM(טבלה147[[#This Row],[תאריך]]))","v":""}]
[null,null,{"$f":"IF(טבלה147[[#This Row],[סיום]]=\"\",\"\",טבלה147[[#This Row],[סיום]]-טבלה147[[#This Row],[התחלה]]+(טבלה147[[#This Row],[סיום]]<טבלה147[[#This Row],[התחלה]]))","v":""},null,null,{"$f":"IF(טבלה147[[#This Row],[תאריך]]=\"\",\"\",MONTH(טבלה147[[#This Row],[תאריך]]))","v":""},{"$f":"IF(טבלה147[[#This Row],[תאריך]]=\"\",\"\",_xlfn.ISOWEEKNUM(טבלה147[[#This Row],[תאריך]]))","v":""}]
[null,null,{"$f":"IF(טבלה147[[#This Row],[סיום]]=\"\",\"\",טבלה147[[#This Row],[סיום]]-טבלה147[[#This Row],[התחלה]]+(טבלה147[[#This Row],[סיום]]<טבלה147[[#This Row],[התחלה]]))","v":""},null,null,{"$f":"IF(טבלה147[[#This Row],[תאריך]]=\"\",\"\",MONTH(טבלה147[[#This Row],[תאריך]]))","v":""},{"$f":"IF(טבלה147[[#This Row],[תאריך]]=\"\",\"\",_xlfn.ISOWEEKNUM(טבלה147[[#This Row],[תאריך]]))","v":""}]
[null,null,{"$f":"IF(טבלה147[[#This Row],[סיום]]=\"\",\"\",טבלה147[[#This Row],[סיום]]-טבלה147[[#This Row],[התחלה]]+(טבלה147[[#This Row],[סיום]]<טבלה147[[#This Row],[התחלה]]))","v":""},null,null,{"$f":"IF(טבלה147[[#This Row],[תאריך]]=\"\",\"\",MONTH(טבלה147[[#This Row],[תאריך]]))","v":""},{"$f":"IF(טבלה147[[#This Row],[תאריך]]=\"\",\"\",_xlfn.ISOWEEKNUM(טבלה147[[#This Row],[תאריך]]))","v":""}]
[null,null,{"$f":"IF(טבלה147[[#This Row],[סיום]]=\"\",\"\",טבלה147[[#This Row],[סיום]]-טבלה147[[#This Row],[התחלה]]+(טבלה147[[#This Row],[סיום]]<טבלה147[[#This Row],[התחלה]]))","v":""},null,null,{"$f":"IF(טבלה147[[#This Row],[תאריך]]=\"\",\"\",MONTH(טבלה147[[#This Row],[תאריך]]))","v":""},{"$f":"IF(טבלה147[[#This Row],[תאריך]]=\"\",\"\",_xlfn.ISOWEEKNUM(טבלה147[[#This Row],[תאריך]]))","v":""}]
[null,null,{"$f":"IF(טבלה147[[#This Row],[סיום]]=\"\",\"\",טבלה147[[#This Row],[סיום]]-טבלה147[[#This Row],[התחלה]]+(טבלה147[[#This Row],[סיום]]<טבלה147[[#This Row],[התחלה]]))","v":""},null,null,{"$f":"IF(טבלה147[[#This Row],[תאריך]]=\"\",\"\",MONTH(טבלה147[[#This Row],[תאריך]]))","v":""},{"$f":"IF(טבלה147[[#This Row],[תאריך]]=\"\",\"\",_xlfn.ISOWEEKNUM(טבלה147[[#This Row],[תאריך]]))","v":""}]
[null,null,{"$f":"IF(טבלה147[[#This Row],[סיום]]=\"\",\"\",טבלה147[[#This Row],[סיום]]-טבלה147[[#This Row],[התחלה]]+(טבלה147[[#This Row],[סיום]]<טבלה147[[#This Row],[התחלה]]))","v":""},null,null,{"$f":"IF(טבלה147[[#This Row],[תאריך]]=\"\",\"\",MONTH(טבלה147[[#This Row],[תאריך]]))","v":""},{"$f":"IF(טבלה147[[#This Row],[תאריך]]=\"\",\"\",_xlfn.ISOWEEKNUM(טבלה147[[#This Row],[תאריך]]))","v":""}]
[null,null,{"$f":"IF(טבלה147[[#This Row],[סיום]]=\"\",\"\",טבלה147[[#This Row],[סיום]]-טבלה147[[#This Row],[התחלה]]+(טבלה147[[#This Row],[סיום]]<טבלה147[[#This Row],[התחלה]]))","v":""},null,null,{"$f":"IF(טבלה147[[#This Row],[תאריך]]=\"\",\"\",MONTH(טבלה147[[#This Row],[תאריך]]))","v":""},{"$f":"IF(טבלה147[[#This Row],[תאריך]]=\"\",\"\",_xlfn.ISOWEEKNUM(טבלה147[[#This Row],[תאריך]]))","v":""}]
[null,null,{"$f":"IF(טבלה147[[#This Row],[סיום]]=\"\",\"\",טבלה147[[#This Row],[סיום]]-טבלה147[[#This Row],[התחלה]]+(טבלה147[[#This Row],[סיום]]<טבלה147[[#This Row],[התחלה]]))","v":""},null,null,{"$f":"IF(טבלה147[[#This Row],[תאריך]]=\"\",\"\",MONTH(טבלה147[[#This Row],[תאריך]]))","v":""},{"$f":"IF(טבלה147[[#This Row],[תאריך]]=\"\",\"\",_xlfn.ISOWEEKNUM(טבלה147[[#This Row],[תאריך]]))","v":""}]
[null,null,{"$f":"IF(טבלה147[[#This Row],[סיום]]=\"\",\"\",טבלה147[[#This Row],[סיום]]-טבלה147[[#This Row],[התחלה]]+(טבלה147[[#This Row],[סיום]]<טבלה147[[#This Row],[התחלה]]))","v":""},null,null,{"$f":"IF(טבלה147[[#This Row],[תאריך]]=\"\",\"\",MONTH(טבלה147[[#This Row],[תאריך]]))","v":""},{"$f":"IF(טבלה147[[#This Row],[תאריך]]=\"\",\"\",_xlfn.ISOWEEKNUM(טבלה147[[#This Row],[תאריך]]))","v":""}]
[null,null,{"$f":"IF(טבלה147[[#This Row],[סיום]]=\"\",\"\",טבלה147[[#This Row],[סיום]]-טבלה147[[#This Row],[התחלה]]+(טבלה147[[#This Row],[סיום]]<טבלה147[[#This Row],[התחלה]]))","v":""},null,null,{"$f":"IF(טבלה147[[#This Row],[תאריך]]=\"\",\"\",MONTH(טבלה147[[#This Row],[תאריך]]))","v":""},{"$f":"IF(טבלה147[[#This Row],[תאריך]]=\"\",\"\",_xlfn.ISOWEEKNUM(טבלה147[[#This Row],[תאריך]]))","v":""}]
[null,null,{"$f":"IF(טבלה147[[#This Row],[סיום]]=\"\",\"\",טבלה147[[#This Row],[סיום]]-טבלה147[[#This Row],[התחלה]]+(טבלה147[[#This Row],[סיום]]<טבלה147[[#This Row],[התחלה]]))","v":""},null,null,{"$f":"IF(טבלה147[[#This Row],[תאריך]]=\"\",\"\",MONTH(טבלה147[[#This Row],[תאריך]]))","v":""},{"$f":"IF(טבלה147[[#This Row],[תאריך]]=\"\",\"\",_xlfn.ISOWEEKNUM(טבלה147[[#This Row],[תאריך]]))","v":""}]
[null,null,{"$f":"IF(טבלה147[[#This Row],[סיום]]=\"\",\"\",טבלה147[[#This Row],[סיום]]-טבלה147[[#This Row],[התחלה]]+(טבלה147[[#This Row],[סיום]]<טבלה147[[#This Row],[התחלה]]))","v":""},null,null,{"$f":"IF(טבלה147[[#This Row],[תאריך]]=\"\",\"\",MONTH(טבלה147[[#This Row],[תאריך]]))","v":""},{"$f":"IF(טבלה147[[#This Row],[תאריך]]=\"\",\"\",_xlfn.ISOWEEKNUM(טבלה147[[#This Row],[תאריך]]))","v":""}]
[null,null,{"$f":"IF(טבלה147[[#This Row],[סיום]]=\"\",\"\",טבלה147[[#This Row],[סיום]]-טבלה147[[#This Row],[התחלה]]+(טבלה147[[#This Row],[סיום]]<טבלה147[[#This Row],[התחלה]]))","v":""},null,null,{"$f":"IF(טבלה147[[#This Row],[תאריך]]=\"\",\"\",MONTH(טבלה147[[#This Row],[תאריך]]))","v":""},{"$f":"IF(טבלה147[[#This Row],[תאריך]]=\"\",\"\",_xlfn.ISOWEEKNUM(טבלה147[[#This Row],[תאריך]]))","v":""}]
[null,null,{"$f":"IF(טבלה147[[#This Row],[סיום]]=\"\",\"\",טבלה147[[#This Row],[סיום]]-טבלה147[[#This Row],[התחלה]]+(טבלה147[[#This Row],[סיום]]<טבלה147[[#This Row],[התחלה]]))","v":""},null,null,{"$f":"IF(טבלה147[[#This Row],[תאריך]]=\"\",\"\",MONTH(טבלה147[[#This Row],[תאריך]]))","v":""},{"$f":"IF(טבלה147[[#This Row],[תאריך]]=\"\",\"\",_xlfn.ISOWEEKNUM(טבלה147[[#This Row],[תאריך]]))","v":""}]
[null,null,{"$f":"IF(טבלה147[[#This Row],[סיום]]=\"\",\"\",טבלה147[[#This Row],[סיום]]-טבלה147[[#This Row],[התחלה]]+(טבלה147[[#This Row],[סיום]]<טבלה147[[#This Row],[התחלה]]))","v":""},null,null,{"$f":"IF(טבלה147[[#This Row],[תאריך]]=\"\",\"\",MONTH(טבלה147[[#This Row],[תאריך]]))","v":""},{"$f":"IF(טבלה147[[#This Row],[תאריך]]=\"\",\"\",_xlfn.ISOWEEKNUM(טבלה147[[#This Row],[תאריך]]))","v":""}]
[null,null,{"$f":"IF(טבלה147[[#This Row],[סיום]]=\"\",\"\",טבלה147[[#This Row],[סיום]]-טבלה147[[#This Row],[התחלה]]+(טבלה147[[#This Row],[סיום]]<טבלה147[[#This Row],[התחלה]]))","v":""},null,null,{"$f":"IF(טבלה147[[#This Row],[תאריך]]=\"\",\"\",MONTH(טבלה147[[#This Row],[תאריך]]))","v":""},{"$f":"IF(טבלה147[[#This Row],[תאריך]]=\"\",\"\",_xlfn.ISOWEEKNUM(טבלה147[[#This Row],[תאריך]]))","v":""}]
[null,null,{"$f":"IF(טבלה147[[#This Row],[סיום]]=\"\",\"\",טבלה147[[#This Row],[סיום]]-טבלה147[[#This Row],[התחלה]]+(טבלה147[[#This Row],[סיום]]<טבלה147[[#This Row],[התחלה]]))","v":""},null,null,{"$f":"IF(טבלה147[[#This Row],[תאריך]]=\"\",\"\",MONTH(טבלה147[[#This Row],[תאריך]]))","v":""},{"$f":"IF(טבלה147[[#This Row],[תאריך]]=\"\",\"\",_xlfn.ISOWEEKNUM(טבלה147[[#This Row],[תאריך]]))","v":""}]
[null,null,{"$f":"IF(טבלה147[[#This Row],[סיום]]=\"\",\"\",טבלה147[[#This Row],[סיום]]-טבלה147[[#This Row],[התחלה]]+(טבלה147[[#This Row],[סיום]]<טבלה147[[#This Row],[התחלה]]))","v":""},null,null,{"$f":"IF(טבלה147[[#This Row],[תאריך]]=\"\",\"\",MONTH(טבלה147[[#This Row],[תאריך]]))","v":""},{"$f":"IF(טבלה147[[#This Row],[תאריך]]=\"\",\"\",_xlfn.ISOWEEKNUM(טבלה147[[#This Row],[תאריך]]))","v":""}]
[null,null,{"$f":"IF(טבלה147[[#This Row],[סיום]]=\"\",\"\",טבלה147[[#This Row],[סיום]]-טבלה147[[#This Row],[התחלה]]+(טבלה147[[#This Row],[סיום]]<טבלה147[[#This Row],[התחלה]]))","v":""},null,null,{"$f":"IF(טבלה147[[#This Row],[תאריך]]=\"\",\"\",MONTH(טבלה147[[#This Row],[תאריך]]))","v":""},{"$f":"IF(טבלה147[[#This Row],[תאריך]]=\"\",\"\",_xlfn.ISOWEEKNUM(טבלה147[[#This Row],[תאריך]]))","v":""}]
[null,null,{"$f":"IF(טבלה147[[#This Row],[סיום]]=\"\",\"\",טבלה147[[#This Row],[סיום]]-טבלה147[[#This Row],[התחלה]]+(טבלה147[[#This Row],[סיום]]<טבלה147[[#This Row],[התחלה]]))","v":""},null,null,{"$f":"IF(טבלה147[[#This Row],[תאריך]]=\"\",\"\",MONTH(טבלה147[[#This Row],[תאריך]]))","v":""},{"$f":"IF(טבלה147[[#This Row],[תאריך]]=\"\",\"\",_xlfn.ISOWEEKNUM(טבלה147[[#This Row],[תאריך]]))","v":""}]
[null,null,{"$f":"IF(טבלה147[[#This Row],[סיום]]=\"\",\"\",טבלה147[[#This Row],[סיום]]-טבלה147[[#This Row],[התחלה]]+(טבלה147[[#This Row],[סיום]]<טבלה147[[#This Row],[התחלה]]))","v":""},null,null,{"$f":"IF(טבלה147[[#This Row],[תאריך]]=\"\",\"\",MONTH(טבלה147[[#This Row],[תאריך]]))","v":""},{"$f":"IF(טבלה147[[#This Row],[תאריך]]=\"\",\"\",_xlfn.ISOWEEKNUM(טבלה147[[#This Row],[תאריך]]))","v":""}]
[null,null,{"$f":"IF(טבלה147[[#This Row],[סיום]]=\"\",\"\",טבלה147[[#This Row],[סיום]]-טבלה147[[#This Row],[התחלה]]+(טבלה147[[#This Row],[סיום]]<טבלה147[[#This Row],[התחלה]]))","v":""},null,null,{"$f":"IF(טבלה147[[#This Row],[תאריך]]=\"\",\"\",MONTH(טבלה147[[#This Row],[תאריך]]))","v":""},{"$f":"IF(טבלה147[[#This Row],[תאריך]]=\"\",\"\",_xlfn.ISOWEEKNUM(טבלה147[[#This Row],[תאריך]]))","v":""}]
[null,null,{"$f":"IF(טבלה147[[#This Row],[סיום]]=\"\",\"\",טבלה147[[#This Row],[סיום]]-טבלה147[[#This Row],[התחלה]]+(טבלה147[[#This Row],[סיום]]<טבלה147[[#This Row],[התחלה]]))","v":""},null,null,{"$f":"IF(טבלה147[[#This Row],[תאריך]]=\"\",\"\",MONTH(טבלה147[[#This Row],[תאריך]]))","v":""},{"$f":"IF(טבלה147[[#This Row],[תאריך]]=\"\",\"\",_xlfn.ISOWEEKNUM(טבלה147[[#This Row],[תאריך]]))","v":""}]
[null,null,{"$f":"IF(טבלה147[[#This Row],[סיום]]=\"\",\"\",טבלה147[[#This Row],[סיום]]-טבלה147[[#This Row],[התחלה]]+(טבלה147[[#This Row],[סיום]]<טבלה147[[#This Row],[התחלה]]))","v":""},null,null,{"$f":"IF(טבלה147[[#This Row],[תאריך]]=\"\",\"\",MONTH(טבלה147[[#This Row],[תאריך]]))","v":""},{"$f":"IF(טבלה147[[#This Row],[תאריך]]=\"\",\"\",_xlfn.ISOWEEKNUM(טבלה147[[#This Row],[תאריך]]))","v":""}]
[null,null,{"$f":"IF(טבלה147[[#This Row],[סיום]]=\"\",\"\",טבלה147[[#This Row],[סיום]]-טבלה147[[#This Row],[התחלה]]+(טבלה147[[#This Row],[סיום]]<טבלה147[[#This Row],[התחלה]]))","v":""},null,null,{"$f":"IF(טבלה147[[#This Row],[תאריך]]=\"\",\"\",MONTH(טבלה147[[#This Row],[תאריך]]))","v":""},{"$f":"IF(טבלה147[[#This Row],[תאריך]]=\"\",\"\",_xlfn.ISOWEEKNUM(טבלה147[[#This Row],[תאריך]]))","v":""}]
[null,null,{"$f":"IF(טבלה147[[#This Row],[סיום]]=\"\",\"\",טבלה147[[#This Row],[סיום]]-טבלה147[[#This Row],[התחלה]]+(טבלה147[[#This Row],[סיום]]<טבלה147[[#This Row],[התחלה]]))","v":""},null,null,{"$f":"IF(טבלה147[[#This Row],[תאריך]]=\"\",\"\",MONTH(טבלה147[[#This Row],[תאריך]]))","v":""},{"$f":"IF(טבלה147[[#This Row],[תאריך]]=\"\",\"\",_xlfn.ISOWEEKNUM(טבלה147[[#This Row],[תאריך]]))","v":""}]
[null,null,{"$f":"IF(טבלה147[[#This Row],[סיום]]=\"\",\"\",טבלה147[[#This Row],[סיום]]-טבלה147[[#This Row],[התחלה]]+(טבלה147[[#This Row],[סיום]]<טבלה147[[#This Row],[התחלה]]))","v":""},null,null,{"$f":"IF(טבלה147[[#This Row],[תאריך]]=\"\",\"\",MONTH(טבלה147[[#This Row],[תאריך]]))","v":""},{"$f":"IF(טבלה147[[#This Row],[תאריך]]=\"\",\"\",_xlfn.ISOWEEKNUM(טבלה147[[#This Row],[תאריך]]))","v":""}]
[null,null,{"$f":"IF(טבלה147[[#This Row],[סיום]]=\"\",\"\",טבלה147[[#This Row],[סיום]]-טבלה147[[#This Row],[התחלה]]+(טבלה147[[#This Row],[סיום]]<טבלה147[[#This Row],[התחלה]]))","v":""},null,null,{"$f":"IF(טבלה147[[#This Row],[תאריך]]=\"\",\"\",MONTH(טבלה147[[#This Row],[תאריך]]))","v":""},{"$f":"IF(טבלה147[[#This Row],[תאריך]]=\"\",\"\",_xlfn.ISOWEEKNUM(טבלה147[[#This Row],[תאריך]]))","v":""}]
[null,null,{"$f":"IF(טבלה147[[#This Row],[סיום]]=\"\",\"\",טבלה147[[#This Row],[סיום]]-טבלה147[[#This Row],[התחלה]]+(טבלה147[[#This Row],[סיום]]<טבלה147[[#This Row],[התחלה]]))","v":""},null,null,{"$f":"IF(טבלה147[[#This Row],[תאריך]]=\"\",\"\",MONTH(טבלה147[[#This Row],[תאריך]]))","v":""},{"$f":"IF(טבלה147[[#This Row],[תאריך]]=\"\",\"\",_xlfn.ISOWEEKNUM(טבלה147[[#This Row],[תאריך]]))","v":""}]
[null,null,{"$f":"IF(טבלה147[[#This Row],[סיום]]=\"\",\"\",טבלה147[[#This Row],[סיום]]-טבלה147[[#This Row],[התחלה]]+(טבלה147[[#This Row],[סיום]]<טבלה147[[#This Row],[התחלה]]))","v":""},null,null,{"$f":"IF(טבלה147[[#This Row],[תאריך]]=\"\",\"\",MONTH(טבלה147[[#This Row],[תאריך]]))","v":""},{"$f":"IF(טבלה147[[#This Row],[תאריך]]=\"\",\"\",_xlfn.ISOWEEKNUM(טבלה147[[#This Row],[תאריך]]))","v":""}]
[null,null,{"$f":"IF(טבלה147[[#This Row],[סיום]]=\"\",\"\",טבלה147[[#This Row],[סיום]]-טבלה147[[#This Row],[התחלה]]+(טבלה147[[#This Row],[סיום]]<טבלה147[[#This Row],[התחלה]]))","v":""},null,null,{"$f":"IF(טבלה147[[#This Row],[תאריך]]=\"\",\"\",MONTH(טבלה147[[#This Row],[תאריך]]))","v":""},{"$f":"IF(טבלה147[[#This Row],[תאריך]]=\"\",\"\",_xlfn.ISOWEEKNUM(טבלה147[[#This Row],[תאריך]]))","v":""}]
[null,null,{"$f":"IF(טבלה147[[#This Row],[סיום]]=\"\",\"\",טבלה147[[#This Row],[סיום]]-טבלה147[[#This Row],[התחלה]]+(טבלה147[[#This Row],[סיום]]<טבלה147[[#This Row],[התחלה]]))","v":""},null,null,{"$f":"IF(טבלה147[[#This Row],[תאריך]]=\"\",\"\",MONTH(טבלה147[[#This Row],[תאריך]]))","v":""},{"$f":"IF(טבלה147[[#This Row],[תאריך]]=\"\",\"\",_xlfn.ISOWEEKNUM(טבלה147[[#This Row],[תאריך]]))","v":""}]
[null,null,{"$f":"IF(טבלה147[[#This Row],[סיום]]=\"\",\"\",טבלה147[[#This Row],[סיום]]-טבלה147[[#This Row],[התחלה]]+(טבלה147[[#This Row],[סיום]]<טבלה147[[#This Row],[התחלה]]))","v":""},null,null,{"$f":"IF(טבלה147[[#This Row],[תאריך]]=\"\",\"\",MONTH(טבלה147[[#This Row],[תאריך]]))","v":""},{"$f":"IF(טבלה147[[#This Row],[תאריך]]=\"\",\"\",_xlfn.ISOWEEKNUM(טבלה147[[#This Row],[תאריך]]))","v":""}]
[null,null,{"$f":"IF(טבלה147[[#This Row],[סיום]]=\"\",\"\",טבלה147[[#This Row],[סיום]]-טבלה147[[#This Row],[התחלה]]+(טבלה147[[#This Row],[סיום]]<טבלה147[[#This Row],[התחלה]]))","v":""},null,null,{"$f":"IF(טבלה147[[#This Row],[תאריך]]=\"\",\"\",MONTH(טבלה147[[#This Row],[תאריך]]))","v":""},{"$f":"IF(טבלה147[[#This Row],[תאריך]]=\"\",\"\",_xlfn.ISOWEEKNUM(טבלה147[[#This Row],[תאריך]]))","v":""}]
[null,null,{"$f":"IF(טבלה147[[#This Row],[סיום]]=\"\",\"\",טבלה147[[#This Row],[סיום]]-טבלה147[[#This Row],[התחלה]]+(טבלה147[[#This Row],[סיום]]<טבלה147[[#This Row],[התחלה]]))","v":""},null,null,{"$f":"IF(טבלה147[[#This Row],[תאריך]]=\"\",\"\",MONTH(טבלה147[[#This Row],[תאריך]]))","v":""},{"$f":"IF(טבלה147[[#This Row],[תאריך]]=\"\",\"\",_xlfn.ISOWEEKNUM(טבלה147[[#This Row],[תאריך]]))","v":""}]
[null,null,{"$f":"IF(טבלה147[[#This Row],[סיום]]=\"\",\"\",טבלה147[[#This Row],[סיום]]-טבלה147[[#This Row],[התחלה]]+(טבלה147[[#This Row],[סיום]]<טבלה147[[#This Row],[התחלה]]))","v":""},null,null,{"$f":"IF(טבלה147[[#This Row],[תאריך]]=\"\",\"\",MONTH(טבלה147[[#This Row],[תאריך]]))","v":""},{"$f":"IF(טבלה147[[#This Row],[תאריך]]=\"\",\"\",_xlfn.ISOWEEKNUM(טבלה147[[#This Row],[תאריך]]))","v":""}]
[null,null,{"$f":"IF(טבלה147[[#This Row],[סיום]]=\"\",\"\",טבלה147[[#This Row],[סיום]]-טבלה147[[#This Row],[התחלה]]+(טבלה147[[#This Row],[סיום]]<טבלה147[[#This Row],[התחלה]]))","v":""},null,null,{"$f":"IF(טבלה147[[#This Row],[תאריך]]=\"\",\"\",MONTH(טבלה147[[#This Row],[תאריך]]))","v":""},{"$f":"IF(טבלה147[[#This Row],[תאריך]]=\"\",\"\",_xlfn.ISOWEEKNUM(טבלה147[[#This Row],[תאריך]]))","v":""}]
[null,null,{"$f":"IF(טבלה147[[#This Row],[סיום]]=\"\",\"\",טבלה147[[#This Row],[סיום]]-טבלה147[[#This Row],[התחלה]]+(טבלה147[[#This Row],[סיום]]<טבלה147[[#This Row],[התחלה]]))","v":""},null,null,{"$f":"IF(טבלה147[[#This Row],[תאריך]]=\"\",\"\",MONTH(טבלה147[[#This Row],[תאריך]]))","v":""},{"$f":"IF(טבלה147[[#This Row],[תאריך]]=\"\",\"\",_xlfn.ISOWEEKNUM(טבלה147[[#This Row],[תאריך]]))","v":""}]
[null,null,{"$f":"IF(טבלה147[[#This Row],[סיום]]=\"\",\"\",טבלה147[[#This Row],[סיום]]-טבלה147[[#This Row],[התחלה]]+(טבלה147[[#This Row],[סיום]]<טבלה147[[#This Row],[התחלה]]))","v":""},null,null,{"$f":"IF(טבלה147[[#This Row],[תאריך]]=\"\",\"\",MONTH(טבלה147[[#This Row],[תאריך]]))","v":""},{"$f":"IF(טבלה147[[#This Row],[תאריך]]=\"\",\"\",_xlfn.ISOWEEKNUM(טבלה147[[#This Row],[תאריך]]))","v":""}]
[null,null,{"$f":"IF(טבלה147[[#This Row],[סיום]]=\"\",\"\",טבלה147[[#This Row],[סיום]]-טבלה147[[#This Row],[התחלה]]+(טבלה147[[#This Row],[סיום]]<טבלה147[[#This Row],[התחלה]]))","v":""},null,null,{"$f":"IF(טבלה147[[#This Row],[תאריך]]=\"\",\"\",MONTH(טבלה147[[#This Row],[תאריך]]))","v":""},{"$f":"IF(טבלה147[[#This Row],[תאריך]]=\"\",\"\",_xlfn.ISOWEEKNUM(טבלה147[[#This Row],[תאריך]]))","v":""}]
[]
["נוצר ע\"י שמואל"]
["abc0533118127@gmail.com"]

{"sheet":"תשלומים","index":4,"n_rows":3,"n_cols":5,"rows_kept":3,"cut":false,"hidden":false,"merged":[[0,0,1,3]]}
["רישום ומעקב תשלומים"]
[]
["בתאריך","התקבל סך","מאת","עבור עבודה","הערות"]